{"text_format":"3","workbook":"xlsx","n_sheets":10,"sheets":["Intro","Information","Map","Battle","Quest Log","Quest Details","Character Stats","Character Data","BattleProbabilities","Level Exp Tracker"],"not_rendered":{"images":17,"macros":1},"read":"whole","date_system":"1900"}

{"sheet":"Intro","index":0,"n_rows":22,"n_cols":19,"rows_kept":22,"merged":[[2,3,2,10],[3,3,3,10],[5,3,13,10],[20,9,20,10],[21,9,21,10]]}
[]
[]
[{"$nulls":3},"Welcome to FloorBowl"]
[{"$nulls":3},"A turn based Skyrim inspired RPG."]
[]
[{"$nulls":3},"You are the Wyvernspawn - once profesized and long forgotten. Your memory is foggy, your head is heavy - you have no memory of your journey or what foul deeds led you here.\n\nYou try to look around but find you are gagged, tied and bound. All you know is you must escape this prison!\n\nBe it fate, luck or the will of the gods - but outside sparks sudden action. There is no need for planning, as chaos has broken on all sides. The horns of war have been blown. Perchance escape has drawn its card for you.\n\nGuards rush blindly into your cell, removing your bounds and releasing all within the cells. The fear in their eyes sends chills down your spine.\n\nYou, and your fellow prisoners bolt for the door, moving just in time as the roof of your cell collapses, crushing all that still remain within it.\n\nThe dealer of the damage is shown to you. A foul lizard like abomination is above you. Tales of old flash into your mind - ahead of you is a Wyvern, a dragon beast, long thought of vanquishsed from a time now forgotten.\n\nAdrenaline spurs your legs onwards as you flea from this place. Without realising it another travels with you - a prisoner of similar fate - now companion on your journey. This campanion you urges you on your journey, to SteamTree and reporting of the Wyvern's sudden return!"]
{"$rows_empty":8}
[{"$nulls":5},"Party [Choose Character 1 First]"]
[{"$nulls":5},"(Protagonist - AKA you)",null,"(Party Member 2)"]
[{"$nulls":5},"Character 1 Name:","Pear","Character 2 Name:","Dynamic"]
[{"$nulls":5},"Character 1 Class:","Warrior","Character 2 Class: ","Archer",{"$nulls":8},"Warrior",{"$f":"IF(R18=$G$18,\"\",R18)","v":""}]
[{"$nulls":17},"Mage",{"$f":"IF(R19=$G$18,\"\",R19)","v":"Mage"}]
[{"$nulls":17},"Archer",{"$f":"IF(R20=$G$18,\"\",R20)","v":"Archer"}]
[{"$nulls":9},"Disable Battles?",{"$nulls":8},"Yes"]
[{"$nulls":9},"No",{"$nulls":8},"No"]

{"sheet":"Information","index":1,"n_rows":54,"n_cols":2,"rows_kept":54,"hidden":true,"merged":[[3,1,3,11],[4,1,4,11],[11,1,11,11],[23,1,24,11],[26,1,27,11],[30,1,32,11],[38,1,39,11],[43,1,44,11],[53,1,54,11]]}
[]
[]
[]
[null,"Welcome to the world of FloorBowl!"]
[null,"FloorBowl is the home of a Skyrim inspired adventure game"]
[]
[null,"There are two key game components to understand to get maximum fun"]
[null,"1. Mapping and Questing"]
[null,"2. Battling"]
[]
[null,"Mapping and Questing"]
[null,"The 'Map' tab is the central hub of this game - where you and your party will seek to save the region from the latest threat."]
[null,"- You and your party are represented by the Red Circle"]
[null,"- Towns/Shelter (and quest locations) are in Black"]
[null,"- Moveable land is in white (pure white for plains, grey for protected lands)"]
[null,"- You can move your party using the arrow buttons (Cells DT32-DV41)"]
[]
[null,"If you are ever stuck - refer back to the quest log for clues, or head to the nearest town to see if that will help!"]
[]
[null,"Fast Travel"]
[null,"To quickly travels across the map consider using the fast travel buttons in cells DT69-DX78"]
[]
[null,"Battle Mode"]
[null,"Note - If at any stage the battle mode seems too hard. Start a new campaign with 'Disable Battle' mode switched to yes, this will disable all battles and allow for peaceful adventuring/questing."]
[]
[]
[null,"Battles can leave your party outnumbered - anywhere between 1 to 5 enemies will spawn to fight your party - so be prepared at all times!"]
[]
[]
[null,"Battles use a simplified version of DnD mechanics, with four features important to understand:"]
[null,"1. Initiative: The world of FloorBowl uses turn based battle mechanics. This means each creature takes it in turn to move and attack. The order of this is defined by an initiative dice roll, where the highest roll gets to go first. This order is set in the first round of combat and stays consistent throughout the battle"]
[]
[]
[]
[null,"2. Range and Movement: "]
[null,"Battles take place on a wide battle arena, where distance is important."]
[null,"Each creature has their own movement they can achieve each turn, as well as different ranges of attack."]
[null,"You can only attack a creature if you are within range."]
[null,"Melee creatures for example can only attack when they are next to another creature, but ranged attacks can benefit from being at a distance"]
[]
[null,"Make sure to track the distance between your party and your enemy!"]
[]
[null,"3. Targeting an enemy"]
[null,"This is essential and often forgotten - do not forget to update your character's targets each turn (cells H13-J13) to strategically tackle living enemies"]
[]
[]
[null,"4. Hitting an Enemy"]
[null,"Once you are in range of attacking the enemy, we now need to see if your attack hits or not."]
[null,"This hit roll is all based on armour class and randomly probability."]
[null,"If your roll falls below the enemy armour class, the attack will miss."]
[]
[null,"5. Damage Calculation"]
[null,"Each weapon and attack move has the capability of hitting a range of damage. This damage scales with your level"]
[null,"Details on what dice and bonuses are added to your attack role are shown on the Character Stats screen (accessible via the map)"]

{"sheet":"Map","index":2,"n_rows":86,"n_cols":159,"rows_kept":86,"hidden":true,"merged":[[0,1,0,10],[0,11,0,20],[0,21,0,30],[0,31,0,40],[0,41,0,50],[0,51,0,60],[0,61,0,70],[0,71,0,80],[0,81,0,90],[0,91,0,100],[0,101,0,110],[0,111,0,120],[1,0,10,0],[6,123,7,127],[8,124,9,124],[8,126,9,126],[10,123,11,123],[10,124,11,124],[10,126,11,126],[11,0,20,0],[12,123,13,123],[12,124,13,124],[12,126,13,126],[14,123,15,123],[14,124,15,124],[14,126,15,126],[16,123,17,123],[16,124,17,124],[16,126,17,126],[18,123,19,123],[18,124,19,124],[18,126,19,126],[20,123,21,123],[20,124,21,124],[20,126,21,126],[21,0,30,0],[22,123,23,123],[22,124,28,125],[22,126,28,127],[31,0,40,0],[31,123,32,125],[31,126,32,127],[33,126,34,127],[35,126,36,127],[37,126,38,127],[41,0,50,0],[45,123,46,127],[47,123,48,123],[47,124,48,124],[47,125,48,126],[47,127,48,127],[49,123,50,123],[49,124,50,124],[49,125,50,126],[49,127,50,127],[49,129,50,129],[51,0,60,0],[51,123,52,123],[51,124,52,124],[51,125,52,126],[51,127,52,127],[55,123,56,127],[57,123,58,125],[59,123,60,123],[59,124,60,124],[59,125,60,125],[61,0,70,0],[62,123,63,124],[62,125,63,126],[64,123,65,123],[64,125,65,125],[68,123,69,127],[70,123,71,124],[70,125,71,126],[71,0,80,0],[72,123,73,124],[72,125,73,126]]}
[null,"A",{"$nulls":9},"B",{"$nulls":9},"C",{"$nulls":9},"D",{"$nulls":9},"E",{"$nulls":9},"F",{"$nulls":9},"G",{"$nulls":9},"H",{"$nulls":9},"I",{"$nulls":9},"J",{"$nulls":9},"K",{"$nulls":9},"L"]
[1,{"$nulls":133},"Message",1,2,3,4,5,6,7,8,9,10,11,12,13,14,15,16,17,18,19,null,"Key Info for questing"]
[{"$nulls":134},"Hanger","Time to rest and heal your weary soul.","Time to rest and heal your weary soul.","Time to rest and heal your weary soul.","Time to rest and heal your weary soul.","Time to rest and heal your weary soul.","Time to rest and heal your weary soul.","Time to rest and heal your weary soul.","Time to rest and heal your weary soul.","Time to rest and heal your weary soul.",{"$f":"'Quest Details'!G12","v":"Things are worse than we feared. Wyvern are not just coming back to life - but they are resurrecting other Wyverns! It seems somehow the Dark Elves are helping them. Daphne is out of ideas, but suggests seeking out an old friend, Eric, could help. Daphne thinks Eric may be Crackton."},"Time to rest and heal your weary soul.","Time to rest and heal your weary soul.","Time to rest and heal your weary soul.","Time to rest and heal your weary soul.","Time to rest and heal your weary soul.","Time to rest and heal your weary soul.","Time to rest and heal your weary soul.","Time to rest and heal your weary soul.","Time to rest and heal your weary soul."]
[{"$nulls":134},"Lonlihood","Time to rest and heal your weary soul.","Time to rest and heal your weary soul.","Time to rest and heal your weary soul.","Time to rest and heal your weary soul.","Time to rest and heal your weary soul.","Time to rest and heal your weary soul.","Time to rest and heal your weary soul.","Time to rest and heal your weary soul.","Time to rest and heal your weary soul.","Time to rest and heal your weary soul.","Time to rest and heal your weary soul.","Time to rest and heal your weary soul.","Time to rest and heal your weary soul.","Time to rest and heal your weary soul.","Time to rest and heal your weary soul.","Time to rest and heal your weary soul.","Time to rest and heal your weary soul.","Time to rest and heal your weary soul.","Time to rest and heal your weary soul.",null,"Town Locations","Town Name","Pop up message","Game State Progression"]
[{"$nulls":134},"Spottart","Time to rest and heal your weary soul.","Time to rest and heal your weary soul.","Time to rest and heal your weary soul.","Time to rest and heal your weary soul.","Time to rest and heal your weary soul.","Time to rest and heal your weary soul.","Time to rest and heal your weary soul.","Time to rest and heal your weary soul.","Time to rest and heal your weary soul.","Time to rest and heal your weary soul.","Time to rest and heal your weary soul.","Time to rest and heal your weary soul.","Time to rest and heal your weary soul.","Time to rest and heal your weary soul.","Time to rest and heal your weary soul.","Time to rest and heal your weary soul.","Time to rest and heal your weary soul.","Time to rest and heal your weary soul.","Time to rest and heal your weary soul.",null,"$AE$11",{"$f":"EE3","v":"Hanger"},{"$f":"VLOOKUP(FA5,$EE$3:$EX$21,$DT$65+1,FALSE)","v":"Time to rest and heal your weary soul."},{"$f":"VLOOKUP(FA5,$EE$37:$EX$55,$DT$65+1,FALSE)","v":1}]
[{"$nulls":134},"Safe Haven","Time to rest and heal your weary soul.","Time to rest and heal your weary soul.","Time to rest and heal your weary soul.","Time to rest and heal your weary soul.","Time to rest and heal your weary soul.","Time to rest and heal your weary soul.","Time to rest and heal your weary soul.","Time to rest and heal your weary soul.","Time to rest and heal your weary soul.","Time to rest and heal your weary soul.","Time to rest and heal your weary soul.",{"$f":"'Quest Details'!G14","v":"Safe Haven revealed the secrets of defeating the Wyvern King. Words of Power are the key! Lets return to the Whitechins to seek their training and wisdom."},"Time to rest and heal your weary soul.","Time to rest and heal your weary soul.","Time to rest and heal your weary soul.","Time to rest and heal your weary soul.","Time to rest and heal your weary soul.","Time to rest and heal your weary soul.","Time to rest and heal your weary soul.",null,"$AK$15",{"$f":"EE4","v":"Lonlihood"},"Time to rest and heal your weary soul.",1]
[{"$nulls":123},"Character Overview",{"$nulls":10},"Flyfall","Time to rest and heal your weary soul.","Time to rest and heal your weary soul.","Time to rest and heal your weary soul.","Time to rest and heal your weary soul.","Time to rest and heal your weary soul.","Time to rest and heal your weary soul.","Time to rest and heal your weary soul.","Time to rest and heal your weary soul.","Time to rest and heal your weary soul.","Time to rest and heal your weary soul.","Time to rest and heal your weary soul.","Time to rest and heal your weary soul.","Time to rest and heal your weary soul.","Time to rest and heal your weary soul.","Time to rest and heal your weary soul.","Time to rest and heal your weary soul.","Time to rest and heal your weary soul.","Time to rest and heal your weary soul.","Time to rest and heal your weary soul.",null,"$H$45","Spottart","Time to rest and heal your weary soul.",1]
[{"$nulls":134},"Forkbay","Time to rest and heal your weary soul.","Time to rest and heal your weary soul.","Time to rest and heal your weary soul.","Time to rest and heal your weary soul.","Time to rest and heal your weary soul.","Time to rest and heal your weary soul.","Time to rest and heal your weary soul.","Time to rest and heal your weary soul.","Time to rest and heal your weary soul.","Time to rest and heal your weary soul.","Time to rest and heal your weary soul.","Time to rest and heal your weary soul.","Time to rest and heal your weary soul.","Time to rest and heal your weary soul.","Time to rest and heal your weary soul.","Time to rest and heal your weary soul.","Time to rest and heal your weary soul.","Time to rest and heal your weary soul.","Time to rest and heal your weary soul.",null,"$P$45","Safe Haven","Time to rest and heal your weary soul.",1]
[{"$nulls":124},"Player 1",null,"Player 2",{"$nulls":7},"Greyfalls",{"$f":"'Quest Details'!G5","v":"You have found a Wyvernstone but cannot read the marks. Best take it back to the Jarl of Darkwalk who should be able to help."},{"$f":"'Quest Details'!G5","v":"You have found a Wyvernstone but cannot read the marks. Best take it back to the Jarl of Darkwalk who should be able to help."},{"$f":"'Quest Details'!G5","v":"You have found a Wyvernstone but cannot read the marks. Best take it back to the Jarl of Darkwalk who should be able to help."},"Time to rest and heal your weary soul.","Time to rest and heal your weary soul.","Time to rest and heal your weary soul.","Time to rest and heal your weary soul.","Time to rest and heal your weary soul.","Time to rest and heal your weary soul.","Time to rest and heal your weary soul.","Time to rest and heal your weary soul.","Time to rest and heal your weary soul.","Time to rest and heal your weary soul.","Time to rest and heal your weary soul.","Time to rest and heal your weary soul.","Time to rest and heal your weary soul.","Time to rest and heal your weary soul.","Time to rest and heal your weary soul.","Time to rest and heal your weary soul.",null,"$AW$26","Flyfall",{"$f":"VLOOKUP(FA9,$EE$3:$EX$21,$DT$65+1,FALSE)","v":"Time to rest and heal your weary soul."},1]
[{"$nulls":134},"Streamtree",{"$f":"'Quest Details'!G3","v":"You made it safely to SteamTree and rest for a while. The local Inn keep is fascinated by your story and suggests the Jarl of Darkwalk would want to hear it."},"Time to rest and heal your weary soul.","Time to rest and heal your weary soul.","Time to rest and heal your weary soul.","Time to rest and heal your weary soul.","Time to rest and heal your weary soul.","Time to rest and heal your weary soul.",{"$f":"'Quest Details'!G10","v":"The Shadow's Knife, Daphne, is shocked by news of the Wyvern's return. Together you must travel to Finsgrove mine to investigate the threat further."},"Time to rest and heal your weary soul.","Time to rest and heal your weary soul.","Time to rest and heal your weary soul.","Time to rest and heal your weary soul.","Time to rest and heal your weary soul.","Time to rest and heal your weary soul.","Time to rest and heal your weary soul.","Time to rest and heal your weary soul.","Time to rest and heal your weary soul.","Time to rest and heal your weary soul.",{"$f":"'Quest Details'!G21","v":"Well done! You have saved the region from the Wyvern Threat."},null,"$AX$69","Forkbay","Time to rest and heal your weary soul.",1]
[{"$nulls":123},"Name",{"$f":"Intro!G17","v":"Pear"},null,{"$f":"Intro!I17","v":"Dynamic"},{"$nulls":7},"Libragrad","Time to rest and heal your weary soul.","Time to rest and heal your weary soul.","Time to rest and heal your weary soul.","Time to rest and heal your weary soul.","Time to rest and heal your weary soul.",{"$f":"'Quest Details'!G8","v":"You find the Horn and must  now return to the Sky of the World."},"Time to rest and heal your weary soul.","Time to rest and heal your weary soul.","Time to rest and heal your weary soul.","Time to rest and heal your weary soul.","Time to rest and heal your weary soul.","Time to rest and heal your weary soul.","Time to rest and heal your weary soul.","Time to rest and heal your weary soul.","Time to rest and heal your weary soul.","Time to rest and heal your weary soul.","Time to rest and heal your weary soul.","Time to rest and heal your weary soul.","Time to rest and heal your weary soul.",null,"$BI$53","Greyfalls",{"$f":"VLOOKUP(FA11,$EE$3:$EX$21,$DT$65+1,FALSE)","v":"You have found a Wyvernstone but cannot read the marks. Best take it back to the Jarl of Darkwalk who should be able to help."},4]
[2,{"$nulls":133},"Duskmoon","Time to rest and heal your weary soul.","Time to rest and heal your weary soul.","Time to rest and heal your weary soul.","Time to rest and heal your weary soul.","Time to rest and heal your weary soul.","Time to rest and heal your weary soul.","Time to rest and heal your weary soul.","Time to rest and heal your weary soul.","Time to rest and heal your weary soul.","Time to rest and heal your weary soul.","Time to rest and heal your weary soul.","Time to rest and heal your weary soul.","Time to rest and heal your weary soul.","Time to rest and heal your weary soul.","Time to rest and heal your weary soul.","Time to rest and heal your weary soul.","Time to rest and heal your weary soul.","Time to rest and heal your weary soul.","Time to rest and heal your weary soul.",null,"$BL$56","Streamtree","You made it safely to SteamTree and rest for a while. The local Inn keep is fascinated by your story and suggests the Jarl of Darkwalk would want to hear it.",2]
[{"$nulls":123},"Current Health",17,null,15,{"$nulls":7},"Darkwalk","Time to rest and heal your weary soul.",{"$f":"'Quest Details'!G4","v":"The Jarl wants you to explore an ancient ruin known as the 'Greyfalls'. Rumour has it there is an ancient stone buried within that may hold secrets of why the Wyvern are returning."},"Time to rest and heal your weary soul.",{"$f":"'Quest Details'!G6","v":"A Dragon appears! With the help of the town guard, you manage to best the dragon.\nThis one was but a babe, others, those fully grown will be much harder.\n Meanwhile the mage of Darkwalk has unravelled the mystery of the Wyvernstone. You must travel to the top of the world and meet with the Whitechins."},"Time to rest and heal your weary soul.","Time to rest and heal your weary soul.","Time to rest and heal your weary soul.","Time to rest and heal your weary soul.","Time to rest and heal your weary soul.","Time to rest and heal your weary soul.","Time to rest and heal your weary soul.","Time to rest and heal your weary soul.","Time to rest and heal your weary soul.","Time to rest and heal your weary soul.","Time to rest and heal your weary soul.","Time to rest and heal your weary soul.",{"$f":"'Quest Details'!G19","v":"You, and the people of Darkwalk trap Oldvinegar - a General of the Wyvern King. \nAfter tough negotiation you convince Oldvinegar to take you to his master - ready to end this one or way or another. Together you will travel to Wyvern Point."},"Time to rest and heal your weary soul.","Time to rest and heal your weary soul.",null,"$BK$24","Libragrad","Time to rest and heal your weary soul.",1]
[{"$nulls":134},"Shellgon","Time to rest and heal your weary soul.","Time to rest and heal your weary soul.","Time to rest and heal your weary soul.","Time to rest and heal your weary soul.","Time to rest and heal your weary soul.","Time to rest and heal your weary soul.","Time to rest and heal your weary soul.","Time to rest and heal your weary soul.","Time to rest and heal your weary soul.","Time to rest and heal your weary soul.","Time to rest and heal your weary soul.","Time to rest and heal your weary soul.","Time to rest and heal your weary soul.","Time to rest and heal your weary soul.","Time to rest and heal your weary soul.","Time to rest and heal your weary soul.","Time to rest and heal your weary soul.","Time to rest and heal your weary soul.","Time to rest and heal your weary soul.",null,"$BN$16","Duskmoon","Time to rest and heal your weary soul.",1]
[{"$nulls":123},"Total Health",{"$f":"'Character Stats'!C6","v":17},null,{"$f":"'Character Stats'!D6","v":15},{"$nulls":7},"Sky of the World","Time to rest and heal your weary soul.","Time to rest and heal your weary soul.","Time to rest and heal your weary soul.","Time to rest and heal your weary soul.",{"$f":"'Quest Details'!G7","v":"You meet the Whitechins. They do not trust this stranger that appears on their holy doorstep. You must prove your worth and find their long lost Horn - last seen in Libragrad."},"Time to rest and heal your weary soul.",{"$f":"'Quest Details'!G9","v":"You earn the trust of the Whitechins. They urge you to seek out the Blade in the dark - one of the last surviving members of the Knives to learn more about the Wyvorn threat. Rumour has it they are hiding within the town of Steamtree."},"Time to rest and heal your weary soul.","Time to rest and heal your weary soul.","Time to rest and heal your weary soul.","Time to rest and heal your weary soul.","Time to rest and heal your weary soul.",{"$f":"'Quest Details'!G15","v":"Our training has begun - but only the basics. It seems the true knowledge was written in an Ancient Scroll long forgotten. We best seek it out, deep within the shafts of  Shiftand - it's final known location."},"Time to rest and heal your weary soul.",{"$f":"'Quest Details'!G17","v":"With the help of the Whitechins you learn the Words of Power. Just in time! As the base is assaulted by two Wyverns - using your new found power you are able to best the foul beasts. You must seek the King's aid in Coldstay."},"Time to rest and heal your weary soul.","Time to rest and heal your weary soul.","Time to rest and heal your weary soul.","Time to rest and heal your weary soul.",null,"$BL$46","Darkwalk","Time to rest and heal your weary soul.",1]
[{"$nulls":134},"Coldstay","Time to rest and heal your weary soul.","Time to rest and heal your weary soul.","Time to rest and heal your weary soul.","Time to rest and heal your weary soul.","Time to rest and heal your weary soul.","Time to rest and heal your weary soul.","Time to rest and heal your weary soul.","Time to rest and heal your weary soul.","Time to rest and heal your weary soul.","Time to rest and heal your weary soul.","Time to rest and heal your weary soul.","Time to rest and heal your weary soul.","Time to rest and heal your weary soul.","Time to rest and heal your weary soul.","Time to rest and heal your weary soul.",{"$f":"'Quest Details'!G18","v":"The King heeds your words. Their will be peace amongst the land as long as the people stand united against the Wyvern Threat. Perfect timing to prepare a trap with the Earl of Darkwalk!"},"Time to rest and heal your weary soul.","Time to rest and heal your weary soul.","Time to rest and heal your weary soul.",null,"$BN$65","Shellgon","Time to rest and heal your weary soul.",1]
[{"$nulls":123},"% Health",{"$f":"DU13/DU15","v":{"v":1,"d":"100%"}},null,{"$f":"DW13/DW15","v":{"v":1,"d":"100%"}},{"$nulls":7},"Breezehat","Time to rest and heal your weary soul.","Time to rest and heal your weary soul.","Time to rest and heal your weary soul.","Time to rest and heal your weary soul.","Time to rest and heal your weary soul.","Time to rest and heal your weary soul.","Time to rest and heal your weary soul.","Time to rest and heal your weary soul.","Time to rest and heal your weary soul.","Time to rest and heal your weary soul.","Time to rest and heal your weary soul.","Time to rest and heal your weary soul.","Time to rest and heal your weary soul.","Time to rest and heal your weary soul.","Time to rest and heal your weary soul.","Time to rest and heal your weary soul.","Time to rest and heal your weary soul.","Time to rest and heal your weary soul.","Time to rest and heal your weary soul.",null,"$BV$53","Sky of the World","Time to rest and heal your weary soul.",1]
[{"$nulls":134},"Finsgrove","Time to rest and heal your weary soul.","Time to rest and heal your weary soul.","Time to rest and heal your weary soul.","Time to rest and heal your weary soul.","Time to rest and heal your weary soul.","Time to rest and heal your weary soul.","Time to rest and heal your weary soul.","Time to rest and heal your weary soul.",{"$f":"'Quest Details'!G11","v":"The threat is real! Daphne watches with amazement as a Wyvern flies overhead. She joins your cause to eradicate the threat once and for all.\nDaphne is curious if there is any connection between Wyverns and the emergence of the Dark Elves - she urges you to investigate the Hanger."},"Time to rest and heal your weary soul.","Time to rest and heal your weary soul.","Time to rest and heal your weary soul.","Time to rest and heal your weary soul.","Time to rest and heal your weary soul.","Time to rest and heal your weary soul.","Time to rest and heal your weary soul.","Time to rest and heal your weary soul.","Time to rest and heal your weary soul.","Time to rest and heal your weary soul.",null,"$CM$15","Coldstay","Time to rest and heal your weary soul.",1]
[{"$nulls":123},"Level",1,null,{"$f":"DU19","v":1},{"$nulls":7},"Cractkon","Time to rest and heal your weary soul.","Time to rest and heal your weary soul.","Time to rest and heal your weary soul.","Time to rest and heal your weary soul.","Time to rest and heal your weary soul.","Time to rest and heal your weary soul.","Time to rest and heal your weary soul.","Time to rest and heal your weary soul.","Time to rest and heal your weary soul.","Time to rest and heal your weary soul.",{"$f":"'Quest Details'!G13","v":"Eric is an expert in Wyvern lore - lucky we found him! He joins Daphne as a guide on our journey and urges we all meet together in the ancient Knives fortress of Safe Haven."},"Time to rest and heal your weary soul.","Time to rest and heal your weary soul.","Time to rest and heal your weary soul.","Time to rest and heal your weary soul.","Time to rest and heal your weary soul.","Time to rest and heal your weary soul.","Time to rest and heal your weary soul.","Time to rest and heal your weary soul.",null,"$CO$34","Breezehat","Time to rest and heal your weary soul.",1]
[{"$nulls":134},"WyvernPoint","Time to rest and heal your weary soul.","Time to rest and heal your weary soul.","Time to rest and heal your weary soul.","Time to rest and heal your weary soul.","Time to rest and heal your weary soul.","Time to rest and heal your weary soul.","Time to rest and heal your weary soul.","Time to rest and heal your weary soul.","Time to rest and heal your weary soul.","Time to rest and heal your weary soul.","Time to rest and heal your weary soul.","Time to rest and heal your weary soul.","Time to rest and heal your weary soul.","Time to rest and heal your weary soul.","Time to rest and heal your weary soul.","Time to rest and heal your weary soul.","Time to rest and heal your weary soul.",{"$f":"'Quest Details'!G20","v":"The Wyvern King is no more. You feel exhausted - perhaps it is time to return to Steamtree and rest your weary feet?"},"Time to rest and heal your weary soul.",null,"$CO$40","Finsgrove","Time to rest and heal your weary soul.",1]
[{"$nulls":123},"Class",{"$f":"Intro!G18","v":"Warrior"},null,{"$f":"Intro!I18","v":"Archer"},{"$nulls":7},"Shiftand","Time to rest and heal your weary soul.","Time to rest and heal your weary soul.","Time to rest and heal your weary soul.","Time to rest and heal your weary soul.","Time to rest and heal your weary soul.","Time to rest and heal your weary soul.","Time to rest and heal your weary soul.","Time to rest and heal your weary soul.","Time to rest and heal your weary soul.","Time to rest and heal your weary soul.","Time to rest and heal your weary soul.","Time to rest and heal your weary soul.","Time to rest and heal your weary soul.",{"$f":"'Quest Details'!G16","v":"After much searching you found the Ancient Scroll - let's return to the Whitechins to finish our training."},"Time to rest and heal your weary soul.","Time to rest and heal your weary soul.","Time to rest and heal your weary soul.","Time to rest and heal your weary soul.","Time to rest and heal your weary soul.",null,"$DF$72","Cractkon","Time to rest and heal your weary soul.",1]
[3,{"$nulls":154},"$DI$43","WyvernPoint","Time to rest and heal your weary soul.",1]
[{"$nulls":123},"Image",{"$f":"IF($DU$13>0,Battle!$B$17,Battle!$U$22)","v":{"$error":"#VALUE!"}},null,{"$f":"IF($DW$13>0,Battle!$C$17,Battle!$U$22)","v":{"$error":"#VALUE!"}},{"$nulls":28},"$CS$25","Shiftand",{"$f":"VLOOKUP(FA23,$EE$3:$EX$21,$DT$65+1,FALSE)","v":"Time to rest and heal your weary soul."},{"$f":"VLOOKUP(FA23,$EE$37:$EX$55,$DT$65+1,FALSE)","v":1}]
{"$rows_empty":8}
[4,{"$nulls":122},"Map Movement",null,null,"Turn Count"]
[]
[{"$nulls":126},97]
[]
[{"$nulls":126},"Current Quest",{"$nulls":7},"Status Look up",1,2,3,4,5,6,7,8,9,10,11,12,13,14,15,16,17,18,19]
[{"$nulls":134},{"$f":"EE3","v":"Hanger"},1,2,3,4,5,6,7,8,9,11,11,12,13,14,15,16,17,18,19]
[{"$nulls":126},{"$f":"VLOOKUP(DT65,EF67:EG91,2,FALSE)","v":"Unleashed"},{"$nulls":7},"Lonlihood",1,2,3,4,5,6,7,8,9,10,11,12,13,14,15,16,17,18,19]
[{"$nulls":134},"Spottart",1,2,3,4,5,6,7,8,9,10,11,12,13,14,15,16,17,18,19]
[{"$nulls":134},"Safe Haven",1,2,3,4,5,6,7,8,9,10,11,13,13,14,15,16,17,18,19]
[{"$nulls":134},"Flyfall",1,2,3,4,5,6,7,8,9,10,11,12,13,14,15,16,17,18,19]
[5,{"$nulls":133},"Forkbay",1,2,3,4,5,6,7,8,9,10,11,12,13,14,15,16,17,18,19]
[{"$nulls":134},"Greyfalls",4,4,4,4,5,6,7,8,9,10,11,12,13,14,15,16,17,18,19]
[{"$nulls":134},"Streamtree",2,2,3,4,5,6,7,9,9,10,11,12,13,14,15,16,17,18,20]
[{"$nulls":134},"Libragrad",1,2,3,4,5,7,7,8,9,10,11,12,13,14,15,16,17,18,19]
[{"$nulls":123},"Map Key",{"$nulls":10},"Duskmoon",1,2,3,4,5,6,7,8,9,10,11,12,13,14,15,16,17,18,19]
[{"$nulls":134},"Darkwalk",1,3,3,5,5,6,7,8,9,10,11,12,13,14,15,16,18,18,19]
[{"$nulls":124},"Town",null,null,"Mountain",{"$nulls":6},"Shellgon",1,2,3,4,5,6,7,8,9,10,11,12,13,14,15,16,17,18,19]
[{"$nulls":134},"Sky of the World",1,2,3,4,6,6,8,8,9,10,11,12,14,14,16,16,17,18,19]
[{"$nulls":124},"Wilds",null,null,"Water",{"$nulls":6},"Coldstay",1,2,3,4,5,6,7,8,9,10,11,12,13,14,15,17,17,18,19]
[{"$nulls":134},"Breezehat",1,2,3,4,5,6,7,8,9,10,11,12,13,14,15,16,17,18,19]
[6,{"$nulls":123},"Safety",{"$nulls":9},"Finsgrove",1,2,3,4,5,6,7,8,10,10,11,12,13,14,15,16,17,18,19]
[{"$nulls":134},"Cractkon",1,2,3,4,5,6,7,8,9,10,12,12,13,14,15,16,17,18,19]
[{"$nulls":134},"WyvernPoint",1,2,3,4,5,6,7,8,9,10,11,12,13,14,15,16,17,19,19]
[{"$nulls":134},"Shiftand",1,2,3,4,5,6,7,8,9,10,11,12,13,15,15,16,17,18,19]
[{"$nulls":123},"Game Details"]
[]
[{"$nulls":123},"Party Location  - Starting"]
[]
[{"$nulls":123},17,67,{"$f":"ADDRESS(DT60,DU60)","v":"$BO$17"}]
[]
[7]
[{"$nulls":123},"Game State",null,"Level Up Indicator"]
[]
[{"$nulls":123},1,null,{"$f":"HLOOKUP($DU$19,'Level Exp Tracker'!F3:Y5,3,FALSE)","v":0}]
[{"$nulls":136},"Quest Name","Quest Goal","Quest State"]
[{"$nulls":135},{"$f":"EI67","v":1},{"$f":"'Quest Details'!D3","v":"Unleashed"},{"$f":"'Quest Details'!E3","v":"Steamtree"},1,"The Wyvern has returned! You must head to Steamtree and report of the horrors."]
[{"$nulls":135},{"$f":"EI68","v":2},{"$f":"'Quest Details'!D4","v":"Storm's Brewing"},{"$f":"'Quest Details'!E4","v":"Darkwalk"},2,{"$f":"'Quest Details'!G3","v":"You made it safely to SteamTree and rest for a while. The local Inn keep is fascinated by your story and suggests the Jarl of Darkwalk would want to hear it."}]
[{"$nulls":123},"Fast Travel",{"$nulls":5},"Fast Travel Locations","Place",{"$nulls":4},3,{"$f":"'Quest Details'!D5","v":"WyvernStone"},{"$f":"'Quest Details'!E5","v":"Greyfalls"},3,{"$f":"'Quest Details'!G4","v":"The Jarl wants you to explore an ancient ruin known as the 'Greyfalls'. Rumour has it there is an ancient stone buried within that may hold secrets of why the Wyvern are returning."}]
[{"$nulls":129},"Spottart","$H$46",{"$nulls":4},4,{"$f":"'Quest Details'!D6","v":"Wyvern rising"},{"$f":"'Quest Details'!E6","v":"Darkwalk"},4,{"$f":"'Quest Details'!G5","v":"You have found a Wyvernstone but cannot read the marks. Best take it back to the Jarl of Darkwalk who should be able to help."}]
[{"$nulls":123},"Place",null,"Location",{"$nulls":3},"Lonlihood","$AJ$15",{"$nulls":4},5,{"$f":"'Quest Details'!D7","v":"Mountain High"},{"$f":"'Quest Details'!E7","v":"Sky of the World"},5,{"$f":"'Quest Details'!G6","v":"A Dragon appears! With the help of the town guard, you manage to best the dragon.\nThis one was but a babe, others, those fully grown will be much harder.\n Meanwhile the mage of Darkwalk has unravelled the mystery of the Wyvernstone. You must travel to the top of the world and meet with the Whitechins."}]
[8,{"$nulls":128},"Forkbay","$AX$70",{"$nulls":4},6,{"$f":"'Quest Details'!D8","v":"Prove your worth"},{"$f":"'Quest Details'!E8","v":"Libragrad"},6,{"$f":"'Quest Details'!G7","v":"You meet the Whitechins. They do not trust this stranger that appears on their holy doorstep. You must prove your worth and find their long lost Horn - last seen in Libragrad."}]
[{"$nulls":123},"Duskmoon",null,{"$f":"VLOOKUP(DT73,DZ70:EA81,2,FALSE)","v":"$BO$17"},{"$nulls":3},"Flyfall","$AV$25",{"$nulls":4},7,{"$f":"'Quest Details'!D9","v":"Return the Horn"},{"$f":"'Quest Details'!E9","v":"Sky of the World"},7,{"$f":"'Quest Details'!G8","v":"You find the Horn and must  now return to the Sky of the World."}]
[{"$nulls":129},"Darkwalk","$BL$47",{"$nulls":4},8,{"$f":"'Quest Details'!D10","v":"Shadow's Knife"},{"$f":"'Quest Details'!E10","v":"Steamtree"},8,{"$f":"'Quest Details'!G9","v":"You earn the trust of the Whitechins. They urge you to seek out the Blade in the dark - one of the last surviving members of the Knives to learn more about the Wyvorn threat. Rumour has it they are hiding within the town of Steamtree."}]
[{"$nulls":129},"Streamtree","$BK$55",{"$nulls":4},9,{"$f":"'Quest Details'!D11","v":"Mine time"},{"$f":"'Quest Details'!E11","v":"Finsgrove"},9,{"$f":"'Quest Details'!G10","v":"The Shadow's Knife, Daphne, is shocked by news of the Wyvern's return. Together you must travel to Finsgrove mine to investigate the threat further."}]
[{"$nulls":129},"Shellgon","$BM$65",{"$nulls":4},10,{"$f":"'Quest Details'!D12","v":"Free Talk"},{"$f":"'Quest Details'!E12","v":"Hanger"},10,{"$f":"'Quest Details'!G11","v":"The threat is real! Daphne watches with amazement as a Wyvern flies overhead. She joins your cause to eradicate the threat once and for all.\nDaphne is curious if there is any connection between Wyverns and the emergence of the Dark Elves - she urges you to investigate the Hanger."}]
[{"$nulls":129},"Sky of the World","$BU$54",{"$nulls":4},11,{"$f":"'Quest Details'!D13","v":"Trapped Mouse"},{"$f":"'Quest Details'!E13","v":"Crackton"},11,{"$f":"'Quest Details'!G12","v":"Things are worse than we feared. Wyvern are not just coming back to life - but they are resurrecting other Wyverns! It seems somehow the Dark Elves are helping them. Daphne is out of ideas, but suggests seeking out an old friend, Eric, could help. Daphne thinks Eric may be Crackton."}]
[{"$nulls":129},"Duskmoon","$BO$17",{"$nulls":4},12,{"$f":"'Quest Details'!D14","v":"Adam's Wall"},{"$f":"'Quest Details'!E14","v":"Safe Haven"},12,{"$f":"'Quest Details'!G13","v":"Eric is an expert in Wyvern lore - lucky we found him! He joins Daphne as a guide on our journey and urges we all meet together in the ancient Knives fortress of Safe Haven."}]
[{"$nulls":129},"Coldstay","$CN$15",{"$nulls":4},13,{"$f":"'Quest Details'!D15","v":"The Voice of the World"},{"$f":"'Quest Details'!E15","v":"Sky of the World"},13,{"$f":"'Quest Details'!G14","v":"Safe Haven revealed the secrets of defeating the Wyvern King. Words of Power are the key! Lets return to the Whitechins to seek their training and wisdom."}]
[{"$nulls":129},"Breezehat","$CP$34",{"$nulls":4},14,{"$f":"'Quest Details'!D16","v":"Age's Wisdom"},{"$f":"'Quest Details'!E16","v":"Shiftand"},14,{"$f":"'Quest Details'!G15","v":"Our training has begun - but only the basics. It seems the true knowledge was written in an Ancient Scroll long forgotten. We best seek it out, deep within the shafts of  Shiftand - it's final known location."}]
[{"$nulls":129},"Crackton","$DG$72",{"$nulls":4},15,{"$f":"'Quest Details'!D17","v":"Adam's Bane"},{"$f":"'Quest Details'!E17","v":"Sky of the World"},15,{"$f":"'Quest Details'!G16","v":"After much searching you found the Ancient Scroll - let's return to the Whitechins to finish our training."}]
[{"$nulls":135},16,{"$f":"'Quest Details'!D18","v":"Season Pause"},{"$f":"'Quest Details'!E18","v":"Coldstay"},16,{"$f":"'Quest Details'!G17","v":"With the help of the Whitechins you learn the Words of Power. Just in time! As the base is assaulted by two Wyverns - using your new found power you are able to best the foul beasts. You must seek the King's aid in Coldstay."}]
[{"$nulls":135},17,{"$f":"'Quest Details'!D19","v":"Collapse"},{"$f":"'Quest Details'!E19","v":"Darkwalk"},17,{"$f":"'Quest Details'!G18","v":"The King heeds your words. Their will be peace amongst the land as long as the people stand united against the Wyvern Threat. Perfect timing to prepare a trap with the Earl of Darkwalk!"}]
[{"$nulls":135},18,{"$f":"'Quest Details'!D20","v":"The World's Nest"},{"$f":"'Quest Details'!E20","v":"Wyvern Point"},18,{"$f":"'Quest Details'!G19","v":"You, and the people of Darkwalk trap Oldvinegar - a General of the Wyvern King. \nAfter tough negotiation you convince Oldvinegar to take you to his master - ready to end this one or way or another. Together you will travel to Wyvern Point."}]
[{"$nulls":135},19,{"$f":"'Quest Details'!D21","v":"End of days"},{"$f":"'Quest Details'!E21","v":"Steamtree"},19,{"$f":"'Quest Details'!G20","v":"The Wyvern King is no more. You feel exhausted - perhaps it is time to return to Steamtree and rest your weary feet?"}]
[{"$nulls":135},20,null,"End of Game",20,{"$f":"'Quest Details'!G21","v":"Well done! You have saved the region from the Wyvern Threat."}]

{"sheet":"Battle","index":3,"n_rows":94,"n_cols":35,"rows_kept":94,"hidden":true,"merged":[[3,7,3,9],[4,7,4,9],[5,7,5,9],[6,7,6,9],[7,7,7,9],[31,0,31,7],[51,0,51,7],[72,1,72,3],[73,1,73,3],[74,1,74,3],[75,1,75,3],[76,1,76,3]]}
[{"$nulls":10},"Planned","Type of Battle",{"$f":"K1","v":"Planned"},{"$f":"VLOOKUP(M1,'Character Data'!X25:Y27,2,FALSE)","v":25}]
["Enemies",1,2,3,4,5,null,null,{"$f":"MAX(E13:E19)","v":0},null,"Small Group of Orcs","Enemies",{"$f":"K2","v":"Small Group of Orcs"},{"$nulls":8},"Warrior","Mage","Archer",{"$f":"'Character Data'!Y5","v":"Bandit Warrior"},{"$f":"'Character Data'!Z5","v":"Bandit Archer"},{"$f":"'Character Data'!AA5","v":"Skeleton Warrior"},{"$f":"'Character Data'!AB5","v":"Wyvern"},{"$f":"'Character Data'!AC5","v":"Ghost"},{"$f":"'Character Data'!AD5","v":"Giant Rat"},{"$f":"'Character Data'!AE5","v":"Orc Warrior"},{"$f":"'Character Data'!AF5","v":"Orc Thrower"},{"$f":"'Character Data'!AG5","v":"Bear"},{"$f":"'Character Data'!AH5","v":"Dark Elf Warrior"},{"$f":"'Character Data'!AI5","v":"Dark Elf Archer"}]
["Name",{"$f":"IF(L5=0,\"\",L5)","v":"Orc Warrior"},{"$f":"IF(M5=0,\"\",M5)","v":"Orc Thrower"},{"$f":"IF(N5=0,\"\",N5)","v":""},{"$f":"IF(O5=0,\"\",O5)","v":""},{"$f":"IF(P5=0,\"\",P5)","v":""},{"$nulls":14},"Level",{"$f":"Map!DU19","v":1},{"$f":"$V$3","v":1},{"$f":"$W$3","v":1},{"$f":"V3","v":1},{"$f":"W3","v":1},1,1,1,1,1,1,1,1,1]
["Image",{"$f":"IFERROR(IF(B5=0,$U$22,HLOOKUP(B$3,$Y$2:$AI$22,21,FALSE)),\"\")","v":{"$error":"#VALUE!"}},{"$f":"IFERROR(IF(C5=0,$U$22,HLOOKUP(C$3,$Y$2:$AI$22,21,FALSE)),\"\")","v":{"$error":"#VALUE!"}},{"$f":"IFERROR(IF(D5=0,$U$22,HLOOKUP(D$3,$Y$2:$AI$22,21,FALSE)),\"\")","v":{"$error":"#VALUE!"}},{"$f":"IFERROR(IF(E5=0,$U$22,HLOOKUP(E$3,$Y$2:$AI$22,21,FALSE)),\"\")","v":{"$error":"#VALUE!"}},{"$f":"IFERROR(IF(F5=0,$U$22,HLOOKUP(F$3,$Y$2:$AI$22,21,FALSE)),\"\")","v":{"$error":"#VALUE!"}},{"$nulls":5},1,2,3,4,5,{"$nulls":4},"HP",{"$f":"HLOOKUP($V$3,'Character Data'!$C$5:$V$21,2,FALSE)","v":17},{"$f":"HLOOKUP($W$3,'Character Data'!$C$25:$V$41,2,FALSE)","v":13},{"$f":"HLOOKUP($X$3,'Character Data'!$C$45:$V$61,2,FALSE)","v":15},{"$f":"'Character Data'!Y6+((Y3-1)*4)","v":7},{"$f":"'Character Data'!Z6+((Z3-1)*4)","v":7},{"$f":"'Character Data'!AA6+((AA3-1)*3)","v":13},{"$f":"'Character Data'!AB6+((AB3-5)*10)","v":40},{"$f":"'Character Data'!AC6+((AC3-5)*3)","v":33},{"$f":"'Character Data'!AD6+((AD3-1)*4)","v":7},{"$f":"'Character Data'!AE6+((AE3-1)*5)","v":15},{"$f":"'Character Data'!AF6+((AF3-1)*5)","v":15},{"$f":"'Character Data'!AG6+((AG3-2)*6)","v":28},{"$f":"'Character Data'!AH6+((AH3-1)*4)","v":11},{"$f":"'Character Data'!AI6+((AI3-1)*4)","v":13}]
["Health",15,15,0,0,0,{"$nulls":5},{"$f":"VLOOKUP(Battle!$M$2,'Character Data'!$AL$13:$AQ$24,2,FALSE)","v":"Orc Warrior"},{"$f":"VLOOKUP(Battle!$M$2,'Character Data'!$AL$13:$AQ$24,3,FALSE)","v":"Orc Thrower"},{"$f":"IF(V3=1,\"\",VLOOKUP(Battle!$M$2,'Character Data'!$AL$13:$AQ$24,4,FALSE))","v":""},{"$f":"IF(V3<3,\"\",VLOOKUP(Battle!$M$2,'Character Data'!$AL$13:$AQ$24,5,FALSE))","v":""},{"$f":"IF(V3<4,\"\",VLOOKUP(Battle!$M$2,'Character Data'!$AL$13:$AQ$24,6,FALSE))","v":""},{"$nulls":4},"Strength",{"$f":"HLOOKUP($V$3,'Character Data'!$C$5:$V$21,3,FALSE)","v":17},{"$f":"HLOOKUP($W$3,'Character Data'!$C$25:$V$41,3,FALSE)","v":9},{"$f":"HLOOKUP($X$3,'Character Data'!$C$45:$V$61,3,FALSE)","v":12},{"$f":"'Character Data'!Y7","v":8},{"$f":"'Character Data'!Z7","v":8},{"$f":"'Character Data'!AA7","v":10},{"$f":"'Character Data'!AB7","v":20},{"$f":"'Character Data'!AC7","v":7},{"$f":"'Character Data'!AD7","v":7},{"$f":"'Character Data'!AE7","v":16},{"$f":"'Character Data'!AF7","v":16},{"$f":"'Character Data'!AG7","v":19},{"$f":"'Character Data'!AH7","v":11},{"$f":"'Character Data'!AI7","v":10}]
["Weapon",{"$f":"HLOOKUP(B$3,$Y$2:$AI$21,14,FALSE)","v":"Greataxe"},{"$f":"IFERROR(HLOOKUP(C$3,$Y$2:$AI$21,14,FALSE),\"\")","v":"Javelin"},{"$f":"IFERROR(HLOOKUP(D$3,$Y$2:$AI$21,14,FALSE),\"\")","v":""},{"$f":"IFERROR(HLOOKUP(E$3,$Y$2:$AI$21,14,FALSE),\"\")","v":""},{"$f":"IFERROR(HLOOKUP(F$3,$Y$2:$AI$21,14,FALSE),\"\")","v":""},{"$nulls":4},2,2,1,2,2,1,{"$nulls":4},"Dexterity",{"$f":"HLOOKUP($V$3,'Character Data'!$C$5:$V$21,4,FALSE)","v":13},{"$f":"HLOOKUP($W$3,'Character Data'!$C$25:$V$41,4,FALSE)","v":14},{"$f":"HLOOKUP($X$3,'Character Data'!$C$45:$V$61,4,FALSE)","v":17},{"$f":"'Character Data'!Y8","v":14},{"$f":"'Character Data'!Z8","v":14},{"$f":"'Character Data'!AA8","v":14},{"$f":"'Character Data'!AB8","v":10},{"$f":"'Character Data'!AC8","v":13},{"$f":"'Character Data'!AD8","v":15},{"$f":"'Character Data'!AE8","v":12},{"$f":"'Character Data'!AF8","v":12},{"$f":"'Character Data'!AG8","v":10},{"$f":"'Character Data'!AH8","v":12},{"$f":"'Character Data'!AI8","v":14}]
["Armour Class",{"$f":"HLOOKUP(B$3,$Y$2:$AI$21,12,FALSE)","v":13},{"$f":"IFERROR(HLOOKUP(C$3,$Y$2:$AI$21,12,FALSE),\"\")","v":13},{"$f":"IFERROR(HLOOKUP(D$3,$Y$2:$AI$21,12,FALSE),\"\")","v":""},{"$f":"IFERROR(HLOOKUP(E$3,$Y$2:$AI$21,12,FALSE),\"\")","v":""},{"$f":"IFERROR(HLOOKUP(F$3,$Y$2:$AI$21,12,FALSE),\"\")","v":""},{"$nulls":5},{"$f":"IF(L5=0,\"\",$N$1)","v":25},{"$f":"IF(M5=0,\"\",$N$1)","v":25},{"$f":"IF(N5=0,\"\",$N$1)","v":25},{"$f":"IF(O5=0,\"\",$N$1)","v":25},{"$f":"IF(P5=0,\"\",$N$1)","v":25},{"$nulls":4},"Constitution",{"$f":"HLOOKUP($V$3,'Character Data'!$C$5:$V$21,5,FALSE)","v":15},{"$f":"HLOOKUP($W$3,'Character Data'!$C$25:$V$41,5,FALSE)","v":15},{"$f":"HLOOKUP($X$3,'Character Data'!$C$45:$V$61,5,FALSE)","v":13},{"$f":"'Character Data'!Y9","v":10},{"$f":"'Character Data'!Z9","v":10},{"$f":"'Character Data'!AA9","v":15},{"$f":"'Character Data'!AB9","v":20},{"$f":"'Character Data'!AC9","v":10},{"$f":"'Character Data'!AD9","v":11},{"$f":"'Character Data'!AE9","v":16},{"$f":"'Character Data'!AF9","v":16},{"$f":"'Character Data'!AG9","v":16},{"$f":"'Character Data'!AH9","v":12},{"$f":"'Character Data'!AI9","v":15}]
["Movement Range",{"$f":"HLOOKUP(B$3,$Y$2:$AI$22,19,FALSE)","v":6},{"$f":"IFERROR(HLOOKUP(C$3,$Y$2:$AI$22,19,FALSE),\"\")","v":6},{"$f":"IFERROR(HLOOKUP(D$3,$Y$2:$AI$22,19,FALSE),\"\")","v":""},{"$f":"IFERROR(HLOOKUP(E$3,$Y$2:$AI$22,19,FALSE),\"\")","v":""},{"$f":"IFERROR(HLOOKUP(F$3,$Y$2:$AI$22,19,FALSE),\"\")","v":""}]
[{"$f":"\"Distance from \"&B13","v":"Distance from Pear"},25,25,25,25,25,{"$nulls":5},"Number","Random","Random +","Availible for Rank","Copy and Paste","HP Lookup removal","Rank",null,null,"Intelligence",{"$f":"HLOOKUP($V$3,'Character Data'!$C$5:$V$21,6,FALSE)","v":10},{"$f":"HLOOKUP($W$3,'Character Data'!$C$25:$V$41,6,FALSE)","v":16},{"$f":"HLOOKUP($X$3,'Character Data'!$C$45:$V$61,6,FALSE)","v":10},{"$f":"'Character Data'!Y10","v":10},{"$f":"'Character Data'!Z10","v":10},{"$f":"'Character Data'!AA10","v":6},{"$f":"'Character Data'!AB10","v":12},{"$f":"'Character Data'!AC10","v":10},{"$f":"'Character Data'!AD10","v":2},{"$f":"'Character Data'!AE10","v":7},{"$f":"'Character Data'!AF10","v":7},{"$f":"'Character Data'!AG10","v":2},{"$f":"'Character Data'!AH10","v":10},{"$f":"'Character Data'!AI10","v":6}]
[{"$f":"\"Distance from \"&C13","v":"Distance from Dynamic"},25,25,25,25,25,null,"Turn After Next",null,{"$f":"IF(F15+1>I2,1,F15+1)","v":1},null,1,{"$f":"RANDBETWEEN(1,20)","v":1},17,{"$f":"IF(B3=\"\",\"\",N10+0.01)","v":{"v":17.01,"d":"17"}},17.01,{"$f":"IF(HLOOKUP(L10,$B$2:$F$5,4,FALSE)=0,\"\",P10)","v":17.01},{"$f":"IFERROR(RANK(Q10,$Q$10:$Q$16,0),\"\")","v":1}]
[{"$nulls":11},2,11,13,{"$f":"IF(C3=\"\",\"\",N11+0.02)","v":{"v":13.02,"d":"13"}},13.02,{"$f":"IF(HLOOKUP(L11,$B$2:$F$5,4,FALSE)=0,\"\",P11)","v":13.02},3,null,null,"Wisdom",{"$f":"HLOOKUP($V$3,'Character Data'!$C$5:$V$21,7,FALSE)","v":12},{"$f":"HLOOKUP($W$3,'Character Data'!$C$25:$V$41,7,FALSE)","v":11},{"$f":"HLOOKUP($X$3,'Character Data'!$C$45:$V$61,7,FALSE)","v":15},{"$f":"'Character Data'!Y11","v":8},{"$f":"'Character Data'!Z11","v":8},{"$f":"'Character Data'!AA11","v":8},{"$f":"'Character Data'!AB11","v":12},{"$f":"'Character Data'!AC11","v":12},{"$f":"'Character Data'!AD11","v":10},{"$f":"'Character Data'!AE11","v":11},{"$f":"'Character Data'!AF11","v":11},{"$f":"'Character Data'!AG11","v":4},{"$f":"'Character Data'!AH11","v":10},{"$f":"'Character Data'!AI11","v":8}]
["Party",6,7,"Combatant list","Initiative Order","Round Number",null,"Party Choices",{"$f":"B13","v":"Pear"},{"$f":"C13","v":"Dynamic"},null,3,13,13,{"$f":"IF(D3=\"\",\"\",N12+0.03)","v":""},"",{"$f":"IF(HLOOKUP(L12,$B$2:$F$5,4,FALSE)=0,\"\",P12)","v":""},"",null,null,"Charisma",{"$f":"HLOOKUP($V$3,'Character Data'!$C$5:$V$21,8,FALSE)","v":8},{"$f":"HLOOKUP($W$3,'Character Data'!$C$25:$V$41,8,FALSE)","v":13},{"$f":"HLOOKUP($X$3,'Character Data'!$C$45:$V$61,8,FALSE)","v":8},{"$f":"'Character Data'!Y12","v":8},{"$f":"'Character Data'!Z12","v":8},{"$f":"'Character Data'!AA12","v":5},{"$f":"'Character Data'!AB12","v":12},{"$f":"'Character Data'!AC12","v":17},{"$f":"'Character Data'!AD12","v":4},{"$f":"'Character Data'!AE12","v":10},{"$f":"'Character Data'!AF12","v":10},{"$f":"'Character Data'!AG12","v":13},{"$f":"'Character Data'!AH12","v":10},{"$f":"'Character Data'!AI12","v":5}]
["Name",{"$f":"Intro!G17","v":"Pear"},{"$f":"Intro!I17","v":"Dynamic"},1,null,0,null,"Target of Attack",1,2,null,4,12,11,{"$f":"IF(E3=\"\",\"\",N13+0.04)","v":""},"",{"$f":"IF(HLOOKUP(L13,$B$2:$F$5,4,FALSE)=0,\"\",P13)","v":""},"",null,null,"AC",{"$f":"HLOOKUP($V$3,'Character Data'!$C$5:$V$21,9,FALSE)","v":16},{"$f":"HLOOKUP($W$3,'Character Data'!$C$25:$V$41,9,FALSE)","v":12},{"$f":"HLOOKUP($X$3,'Character Data'!$C$45:$V$61,9,FALSE)","v":14},{"$f":"'Character Data'!Y13","v":15},{"$f":"'Character Data'!Z13","v":15},{"$f":"'Character Data'!AA13","v":13},{"$f":"'Character Data'!AB13","v":20},{"$f":"'Character Data'!AC13","v":11},{"$f":"'Character Data'!AD13","v":12},{"$f":"'Character Data'!AE13","v":13},{"$f":"'Character Data'!AF13","v":13},{"$f":"'Character Data'!AG13","v":7},{"$f":"'Character Data'!AH13","v":12},{"$f":"'Character Data'!AI13","v":13}]
["Health",17,15,2,null,"Next Turn",null,"Movement Distance",6,"",null,5,19,20,{"$f":"IF(F3=\"\",\"\",N14+0.05)","v":""},"",{"$f":"IF(HLOOKUP(L14,$B$2:$F$5,4,FALSE)=0,\"\",P14)","v":""},"",null,null,"Inititive Bonus",{"$f":"HLOOKUP($V$3,'Character Data'!$C$5:$V$21,10,FALSE)","v":1},{"$f":"HLOOKUP($W$3,'Character Data'!$C$25:$V$41,10,FALSE)","v":2},{"$f":"HLOOKUP($X$3,'Character Data'!$C$45:$V$61,10,FALSE)","v":3},{"$f":"'Character Data'!Y14","v":0},{"$f":"'Character Data'!Z14","v":0},{"$f":"'Character Data'!AA14","v":0},{"$f":"'Character Data'!AB14","v":0},{"$f":"'Character Data'!AC14","v":0},{"$f":"'Character Data'!AD14","v":0},{"$f":"'Character Data'!AE14","v":0},{"$f":"'Character Data'!AF14","v":0},{"$f":"'Character Data'!AG14","v":0},{"$f":"'Character Data'!AH14","v":0},{"$f":"'Character Data'!AI14","v":0}]
["Weapon",{"$f":"'Character Stats'!C15","v":"Long Sword"},{"$f":"'Character Stats'!D15","v":"Hunting Bow"},3,null,1,null,"Note - Movement happens first.",{"$nulls":3},6,10,3,{"$f":"IF(B13=\"\",\"\",N15+0.06)","v":{"v":3.06,"d":"3"}},3.06,{"$f":"IF(HLOOKUP(L15,$B$12:$C$14,3,FALSE)=0,\"\",P15)","v":3.06},4,null,null,"Weapon",{"$f":"HLOOKUP($V$3,'Character Data'!$C$5:$V$21,11,FALSE)","v":"Long Sword"},{"$f":"HLOOKUP($W$3,'Character Data'!$C$25:$V$41,11,FALSE)","v":"Fireball"},{"$f":"HLOOKUP($X$3,'Character Data'!$C$45:$V$61,11,FALSE)","v":"Hunting Bow"},{"$f":"'Character Data'!Y15","v":"Sharp Spear"},{"$f":"'Character Data'!Z15","v":"Crude Bow"},{"$f":"'Character Data'!AA15","v":"Ancient Sword"},{"$f":"'Character Data'!AB15","v":"Dragon Claw"},{"$f":"'Character Data'!AC15","v":"Withering Touch"},{"$f":"'Character Data'!AD15","v":"Bite"},{"$f":"'Character Data'!AE15","v":"Greataxe"},{"$f":"'Character Data'!AF15","v":"Javelin"},{"$f":"'Character Data'!AG15","v":"Claws"},{"$f":"'Character Data'!AH15","v":"Crude Sword"},{"$f":"'Character Data'!AI15","v":"Crude Bow"}]
["AC",{"$f":"'Character Stats'!C13","v":16},{"$f":"'Character Stats'!D13","v":14},4,{"$nulls":7},7,20,14,{"$f":"IF(C13=\"\",\"\",N16+0.07)","v":{"v":14.07,"d":"14"}},14.07,{"$f":"IF(HLOOKUP(L16,$B$12:$C$14,3,FALSE)=0,\"\",P16)","v":14.07},2,null,null,"Hit Extra",{"$f":"HLOOKUP($V$3,'Character Data'!$C$5:$V$21,12,FALSE)","v":5},{"$f":"HLOOKUP($W$3,'Character Data'!$C$25:$V$41,12,FALSE)","v":5},{"$f":"HLOOKUP($X$3,'Character Data'!$C$45:$V$61,12,FALSE)","v":5},{"$f":"'Character Data'!Y16","v":4},{"$f":"'Character Data'!Z16","v":4},{"$f":"'Character Data'!AA16","v":4},{"$f":"'Character Data'!AB16","v":12},{"$f":"'Character Data'!AC16","v":5},{"$f":"'Character Data'!AD16","v":4},{"$f":"'Character Data'!AE16","v":5},{"$f":"'Character Data'!AF16","v":5},{"$f":"'Character Data'!AG16","v":6},{"$f":"'Character Data'!AH16","v":3},{"$f":"'Character Data'!AI16","v":3}]
["Image",{"$f":"IF($B$14=0,$U$22,HLOOKUP(B$19,$U$2:$X$22,21,FALSE))","v":{"$error":"#VALUE!"}},{"$f":"IF($C$14=0,$U$22,HLOOKUP(C$19,$U$2:$X$22,21,FALSE))","v":{"$error":"#VALUE!"}},5,{"$nulls":16},"Basic Attack Di",{"$f":"HLOOKUP($V$3,'Character Data'!$C$5:$V$21,13,FALSE)","v":6},{"$f":"HLOOKUP($W$3,'Character Data'!$C$25:$V$41,13,FALSE)","v":10},{"$f":"HLOOKUP($X$3,'Character Data'!$C$45:$V$61,13,FALSE)","v":8},{"$f":"'Character Data'!Y17","v":6},{"$f":"'Character Data'!Z17","v":6},{"$f":"'Character Data'!AA17","v":6},{"$f":"'Character Data'!AB17","v":6},{"$f":"'Character Data'!AC17","v":5},{"$f":"'Character Data'!AD17","v":4},{"$f":"'Character Data'!AE17","v":12},{"$f":"'Character Data'!AF17","v":6},{"$f":"'Character Data'!AG17","v":6},{"$f":"'Character Data'!AH17","v":6},{"$f":"'Character Data'!AI17","v":8}]
["Initiative Bonus",{"$f":"HLOOKUP(B$19,$U$2:$X$21,13,FALSE)","v":1},{"$f":"HLOOKUP(C$19,$U$2:$X$21,13,FALSE)","v":3},6,{"$nulls":16},"Attack number of Di",{"$f":"HLOOKUP($V$3,'Character Data'!$C$5:$V$21,14,FALSE)","v":2},{"$f":"HLOOKUP($W$3,'Character Data'!$C$25:$V$41,14,FALSE)","v":1},{"$f":"HLOOKUP($X$3,'Character Data'!$C$45:$V$61,14,FALSE)","v":1},{"$f":"'Character Data'!Y18","v":1},{"$f":"'Character Data'!Z18","v":1},{"$f":"'Character Data'!AA18","v":1},{"$f":"'Character Data'!AB18","v":3},{"$f":"'Character Data'!AC18","v":4},{"$f":"'Character Data'!AD18","v":2},{"$f":"'Character Data'!AE18","v":1},{"$f":"'Character Data'!AF18","v":1},{"$f":"'Character Data'!AG18","v":3},{"$f":"'Character Data'!AH18","v":1},{"$f":"'Character Data'!AI18","v":1}]
["Class",{"$f":"Map!DU21","v":"Warrior"},{"$f":"Map!DW21","v":"Archer"},7,{"$nulls":16},"Extra Attack",{"$f":"HLOOKUP($V$3,'Character Data'!$C$5:$V$21,15,FALSE)","v":3},{"$f":"HLOOKUP($W$3,'Character Data'!$C$25:$V$41,15,FALSE)","v":0},{"$f":"HLOOKUP($X$3,'Character Data'!$C$45:$V$61,15,FALSE)","v":3},{"$f":"'Character Data'!Y19","v":2},{"$f":"'Character Data'!Z19","v":2},{"$f":"'Character Data'!AA19","v":2},{"$f":"'Character Data'!AB19","v":10},{"$f":"'Character Data'!AC19","v":3},{"$f":"'Character Data'!AD19","v":2},{"$f":"'Character Data'!AE19","v":3},{"$f":"'Character Data'!AF19","v":3},{"$f":"'Character Data'!AG19","v":5},{"$f":"'Character Data'!AH19","v":1},{"$f":"'Character Data'!AI19","v":1}]
["Attack Range",{"$f":"'Character Stats'!C21","v":1},{"$f":"'Character Stats'!D21","v":24},{"$nulls":17},"Mvmt",{"$f":"HLOOKUP($V$3,'Character Data'!$C$5:$V$21,16,FALSE)","v":6},{"$f":"HLOOKUP($W$3,'Character Data'!$C$25:$V$41,16,FALSE)","v":6},{"$f":"HLOOKUP($X$3,'Character Data'!$C$45:$V$61,16,FALSE)","v":7},{"$f":"'Character Data'!Y20","v":6},{"$f":"'Character Data'!Z20","v":6},{"$f":"'Character Data'!AA20","v":6},{"$f":"'Character Data'!AB20","v":12},{"$f":"'Character Data'!AC20","v":3},{"$f":"'Character Data'!AD20","v":6},{"$f":"'Character Data'!AE20","v":6},{"$f":"'Character Data'!AF20","v":6},{"$f":"'Character Data'!AG20","v":10},{"$f":"'Character Data'!AH20","v":6},{"$f":"'Character Data'!AI20","v":6}]
["Mvmt Range",{"$f":"'Character Stats'!C20","v":6},{"$f":"'Character Stats'!D20","v":7},{"$nulls":17},"Range of Attack",{"$f":"HLOOKUP($V$3,'Character Data'!$C$5:$V$21,17,FALSE)","v":1},{"$f":"HLOOKUP($W$3,'Character Data'!$C$25:$V$41,17,FALSE)","v":12},{"$f":"HLOOKUP($X$3,'Character Data'!$C$45:$V$61,17,FALSE)","v":24},{"$f":"'Character Data'!Y21","v":1},{"$f":"'Character Data'!Z21","v":12},{"$f":"'Character Data'!AA21","v":1},{"$f":"'Character Data'!AB21","v":1},{"$f":"'Character Data'!AC21","v":1},{"$f":"'Character Data'!AD21","v":1},{"$f":"'Character Data'!AE21","v":1},{"$f":"'Character Data'!AF21","v":6},{"$f":"'Character Data'!AG21","v":1},{"$f":"'Character Data'!AH21","v":1},{"$f":"'Character Data'!AI21","v":15}]
[{"$nulls":13},"Round +1",{"$f":"F13+1","v":1},{"$nulls":5},{"$error":"#VALUE!"},{"$error":"#VALUE!"},{"$error":"#VALUE!"},{"$error":"#VALUE!"},{"$error":"#VALUE!"},{"$error":"#VALUE!"},{"$error":"#VALUE!"},{"$error":"#VALUE!"},{"$error":"#VALUE!"},{"$error":"#VALUE!"},{"$error":"#VALUE!"},{"$error":"#VALUE!"},{"$error":"#VALUE!"},{"$error":"#VALUE!"},{"$error":"#VALUE!"}]
[{"$nulls":28},2,4,6,8,10,12,14]
{"$rows_empty":8}
["Linked"]
[null,1,2,3,4,5,6,7]
["Creature",{"$f":"IFERROR(B3,\"\")","v":"Orc Warrior"},{"$f":"IFERROR(C3,\"\")","v":"Orc Thrower"},{"$f":"IFERROR(D3,\"\")","v":""},{"$f":"IFERROR(E3,\"\")","v":""},{"$f":"IFERROR(F3,\"\")","v":""},{"$f":"B13","v":"Pear"},{"$f":"C13","v":"Dynamic"}]
["Target",{"$f":"IF((HLOOKUP(IF(L6=1,$B$12,$C$12),$B$12:$C$14,3,FALSE)=0),IF(L6=2,$B$12,$C$12),IF(L6=1,$B$12,$C$12))","v":7},{"$f":"IF((HLOOKUP(IF(M6=1,$B$12,$C$12),$B$12:$C$14,3,FALSE)=0),IF(M6=2,$B$12,$C$12),IF(M6=1,$B$12,$C$12))","v":6},{"$f":"IF((HLOOKUP(IF(N6=1,$B$12,$C$12),$B$12:$C$14,3,FALSE)=0),IF(N6=2,$B$12,$C$12),IF(N6=1,$B$12,$C$12))","v":7},{"$f":"IF((HLOOKUP(IF(O6=1,$B$12,$C$12),$B$12:$C$14,3,FALSE)=0),IF(O6=2,$B$12,$C$12),IF(O6=1,$B$12,$C$12))","v":7},{"$f":"IF((HLOOKUP(IF(P6=1,$B$12,$C$12),$B$12:$C$14,3,FALSE)=0),IF(P6=2,$B$12,$C$12),IF(P6=1,$B$12,$C$12))","v":6},{"$f":"I13","v":1},{"$f":"J13","v":2}]
["Distance from target",{"$f":"HLOOKUP(B33,$A$2:$F$10,IF(B35=6,8,9),FALSE)-0.01","v":{"v":24.99,"d":"25"}},{"$f":"HLOOKUP(C33,$A$2:$F$10,IF(C35=6,8,9),FALSE)-0.01","v":{"v":24.99,"d":"25"}},{"$f":"HLOOKUP(D33,$A$2:$F$10,IF(D35=6,8,9),FALSE)-0.01","v":{"v":24.99,"d":"25"}},{"$f":"HLOOKUP(E33,$A$2:$F$10,IF(E35=6,8,9),FALSE)-0.01","v":{"v":24.99,"d":"25"}},{"$f":"HLOOKUP(F33,$A$2:$F$10,IF(F35=6,8,9),FALSE)-0.01","v":{"v":24.99,"d":"25"}},{"$f":"HLOOKUP($G$35,$B$2:$F$10,8,FALSE)-0.01","v":{"v":24.99,"d":"24.990"}},{"$f":"HLOOKUP($G$35,$B$2:$F$10,8,FALSE)-0.01","v":{"v":24.99,"d":"25"}}]
["Range of attack",{"$f":"IFERROR(HLOOKUP(B3,$Y$2:$AI$21,20,FALSE),\"\")","v":1},{"$f":"IFERROR(HLOOKUP(C3,$Y$2:$AI$21,20,FALSE),\"\")","v":6},{"$f":"IFERROR(HLOOKUP(D3,$Y$2:$AI$21,20,FALSE),\"\")","v":""},{"$f":"IFERROR(HLOOKUP(E3,$Y$2:$AI$21,20,FALSE),\"\")","v":""},{"$f":"IFERROR(HLOOKUP(F3,$Y$2:$AI$21,20,FALSE),\"\")","v":""},{"$f":"B20","v":{"v":1,"d":"1.000"}},{"$f":"C20","v":24},null,"Initiative Order","Combatant list"]
["Mvmt possible",{"$f":"B8","v":6},{"$f":"C8","v":6},"","","",{"$f":"B21","v":6},{"$f":"C21","v":7},null,{"$f":"E13","v":0},{"$f":"D13","v":1}]
["Currently attack?",{"$f":"IF(B37>B36,\"Y\",\"N\")","v":"N"},"N","Y","Y","Y",{"$f":"IF(G37>G36,\"Y\",\"N\")","v":"N"},"N",null,0,{"$f":"D14","v":2},{"$f":"VLOOKUP($F$15,$J$37:$K$44,2,FALSE)","v":{"$error":"#N/A"}}]
["Attack post movement?",{"$f":"IF(B37>(B36-B41),\"Y\",\"N\")","v":"N"},{"$f":"IFERROR(IF(C37>(C36-C41),\"Y\",\"N\"),\"N\")","v":"N"},{"$f":"IFERROR(IF(D37>(D36-D41),\"Y\",\"N\"),\"N\")","v":"Y"},{"$f":"IFERROR(IF(E37>(E36-E41),\"Y\",\"N\"),\"N\")","v":"Y"},{"$f":"IFERROR(IF(F37>(F36-F41),\"Y\",\"N\"),\"N\")","v":"Y"},{"$f":"IFERROR(IF(G37>(G36-G41),\"Y\",\"N\"),\"N\")","v":"N"},"N",null,0,3]
["Movment Used",{"$f":"IF(B39=\"N\",B38,0)","v":6},{"$f":"IF(C39=\"N\",C38,0)","v":6},{"$f":"IF(D39=\"N\",D38,0)","v":0},{"$f":"IF(E39=\"N\",E38,0)","v":0},{"$f":"IF(F39=\"N\",F38,0)","v":0},{"$f":"IFERROR(VALUE(I14),0)","v":6},{"$f":"IFERROR(VALUE(J14),0)","v":0},null,0,4]
["New Distance",{"$f":"MAX(B36-B41,1)","v":18.99},{"$f":"IFERROR(MAX(C36-C41,1),1)","v":18.99},{"$f":"IFERROR(MAX(D36-D41,1),1)","v":24.99},{"$f":"IFERROR(MAX(E36-E41,1),1)","v":24.99},{"$f":"IFERROR(MAX(F36-F41,1),1)","v":24.99},{"$f":"IFERROR(MAX(G36-G41,1),1)","v":18.99},24.99,null,0,5]
["Target AC",{"$f":"IF(B35=6,$B$16,$C$16)","v":14},{"$f":"IF(C35=6,$B$16,$C$16)","v":16},{"$f":"IF(D35=6,$B$16,$C$16)","v":14},{"$f":"IF(E35=6,$B$16,$C$16)","v":14},{"$f":"IF(F35=6,$B$16,$C$16)","v":16},{"$f":"HLOOKUP($G$35,$B$2:$F$10,6,FALSE)","v":13},{"$f":"HLOOKUP($G$35,$B$2:$F$10,6,FALSE)","v":13},null,0,6]
["Hit Extra",{"$f":"HLOOKUP(B$3,$Y$2:$AI$21,15,FALSE)","v":5},{"$f":"IFERROR(HLOOKUP(C$3,$Y$2:$AI$21,15,FALSE),\"\")","v":5},{"$f":"IFERROR(HLOOKUP(D$3,$Y$2:$AI$21,15,FALSE),\"\")","v":""},{"$f":"IFERROR(HLOOKUP(E$3,$Y$2:$AI$21,15,FALSE),\"\")","v":""},{"$f":"IFERROR(HLOOKUP(F$3,$Y$2:$AI$21,15,FALSE),\"\")","v":""},{"$f":"HLOOKUP(B$19,$V$2:$AI$21,15,FALSE)","v":5},{"$f":"HLOOKUP(C$19,$V$2:$AI$21,15,FALSE)","v":5},null,0,7]
["Basic Attack Di",{"$f":"HLOOKUP(B$3,$Y$2:$AI$21,16,FALSE)","v":12},{"$f":"IFERROR(HLOOKUP(C$3,$Y$2:$AI$21,16,FALSE),\"\")","v":6},{"$f":"IFERROR(HLOOKUP(D$3,$Y$2:$AI$21,16,FALSE),\"\")","v":""},{"$f":"IFERROR(HLOOKUP(E$3,$Y$2:$AI$21,16,FALSE),\"\")","v":""},{"$f":"IFERROR(HLOOKUP(F$3,$Y$2:$AI$21,16,FALSE),\"\")","v":""},{"$f":"HLOOKUP(B$19,$V$2:$AI$21,16,FALSE)","v":6},{"$f":"HLOOKUP(C$19,$V$2:$AI$21,16,FALSE)","v":8}]
["Attack number of Di",{"$f":"HLOOKUP(B$3,$Y$2:$AI$21,17,FALSE)","v":1},{"$f":"IFERROR(HLOOKUP(C$3,$Y$2:$AI$21,17,FALSE),\"\")","v":1},{"$f":"IFERROR(HLOOKUP(D$3,$Y$2:$AI$21,17,FALSE),\"\")","v":""},{"$f":"IFERROR(HLOOKUP(E$3,$Y$2:$AI$21,17,FALSE),\"\")","v":""},{"$f":"IFERROR(HLOOKUP(F$3,$Y$2:$AI$21,17,FALSE),\"\")","v":""},{"$f":"HLOOKUP(B$19,$V$2:$AI$21,17,FALSE)","v":2},{"$f":"HLOOKUP(C$19,$V$2:$AI$21,17,FALSE)","v":1},null,null,{"$f":"I12","v":"Pear"},{"$f":"J12","v":"Dynamic"}]
["Extra Attack",{"$f":"HLOOKUP(B$3,$Y$2:$AI$21,18,FALSE)","v":3},{"$f":"IFERROR(HLOOKUP(C$3,$Y$2:$AI$21,18,FALSE),\"\")","v":3},{"$f":"IFERROR(HLOOKUP(D$3,$Y$2:$AI$21,18,FALSE),\"\")","v":""},{"$f":"IFERROR(HLOOKUP(E$3,$Y$2:$AI$21,18,FALSE),\"\")","v":""},{"$f":"IFERROR(HLOOKUP(F$3,$Y$2:$AI$21,18,FALSE),\"\")","v":""},{"$f":"HLOOKUP(B$19,$V$2:$AI$21,18,FALSE)","v":3},{"$f":"HLOOKUP(C$19,$V$2:$AI$21,18,FALSE)","v":3},null,1,{"$f":"IF(B$21+0.01>$J47,$J47,\"\")","v":1},{"$f":"IF(C$21+0.01>$J47,$J47,\"\")","v":1}]
["Attack Roll",{"$f":"RANDBETWEEN(1,20)+B44","v":18},{"$f":"IFERROR(RANDBETWEEN(1,20)+C44,0)","v":21},{"$f":"IFERROR(RANDBETWEEN(1,20)+D44,0)","v":0},{"$f":"IFERROR(RANDBETWEEN(1,20)+E44,0)","v":0},{"$f":"IFERROR(RANDBETWEEN(1,20)+F44,0)","v":0},16,15,null,2,{"$f":"IF(B$21+0.01>$J48,$J48,\"\")","v":2},2]
["Hit?",{"$f":"IF(B48>B43-0.01,\"Y\",\"N\")","v":"Y"},"Y","N","N","N","Y","Y",null,3,3,3]
["Damage",{"$f":"RANDBETWEEN(1,B45)*B46+B47","v":15},{"$f":"IFERROR(RANDBETWEEN(1,C45)*C46+C47,0)","v":4},{"$f":"IFERROR(RANDBETWEEN(1,D45)*D46+D47,0)","v":0},{"$f":"IFERROR(RANDBETWEEN(1,E45)*E46+E47,0)","v":0},{"$f":"IFERROR(RANDBETWEEN(1,F45)*F46+F47,0)","v":0},15,6,null,4,4,4]
[null,{"$f":"B34","v":"Orc Warrior"},{"$f":"C34","v":"Orc Thrower"},"","","","Pear","Dynamic",null,5,5,5]
["Copied",{"$nulls":8},6,6,6]
[null,1,2,3,4,5,6,7,null,7,"",7,{"$nulls":13},{"$f":"IF(L5=0,\"\",$N$1)","v":25}]
["Creature","Bandit Warrior","Bandit Archer","","","","Pear","Dynamic",null,8,"",""]
["Target",6,6,6,6,6,3,3,null,9,"",""]
["Distance from target",0.89,0.89,0.89,0.89,0.89,0.89,0.89,null,10,"",""]
["Range of attack",1,12,"","","",1,24,null,11,"",""]
["Mvmt possible",6,6,"","","",6,7,null,12,"",""]
["Currently attack?","Y","Y","Y","Y","Y","Y","Y"]
["Attack post movement?","Y","Y","Y","Y","Y","Y","Y"]
["Movment Used",0,0,0,0,0,6,0]
["New Distance",1,1,1,1,1,1,1]
["Target AC",16,16,16,16,16,"",""]
["Hit Extra",4,4,"","","",5,5]
["Basic Attack Di",6,6,"","","",6,8]
["Attack number of Di",1,1,"","","",2,1]
["Extra Attack",2,2,"","","",3,3]
["Attack Roll",17,24,0,0,0,7,8]
["Hit?","Y","Y","N","N","N",{"$error":"#VALUE!"},{"$error":"#VALUE!"}]
["Damage",6,6,0,0,0,13,9]
[]
[null,"Live version based on turn order and copied cells"]
[null,{"$f":"\"It's \" &E73&\"'s turn\"","v":{"$error":"#N/A"}},null,null,{"$f":"HLOOKUP($F$73,$A$53:$H$54,2,FALSE)","v":{"$error":"#N/A"}},{"$f":"VLOOKUP($F$15,$J$38:$K$44,2,FALSE)","v":{"$error":"#N/A"}}]
[null,{"$f":"E73&\" moves \"&E74&\" metres\"","v":{"$error":"#N/A"}},null,null,{"$f":"HLOOKUP($F$73,$A$53:$H$61,9,FALSE)","v":{"$error":"#N/A"}}]
[null,{"$f":"E73&\" targets \"&F75","v":{"$error":"#N/A"}},null,null,{"$f":"HLOOKUP(F73,A53:H55,3,FALSE)","v":{"$error":"#N/A"}},{"$f":"HLOOKUP($E$75,$B$53:$H$54,2,FALSE)","v":{"$error":"#N/A"}}]
[null,{"$f":"IF(F76=\"N\",E73&\" is out of Range\",IF(E76=\"N\",E73&\" misses\",E73&\" hits\"))","v":{"$error":"#N/A"}},null,null,{"$f":"HLOOKUP($F$73,$A$53:$H$70,17,FALSE)","v":{"$error":"#N/A"}},{"$f":"HLOOKUP($F$73,$A$53:$H$70,8,FALSE)","v":{"$error":"#N/A"}}]
[null,{"$f":"IF(E77=\"N\",E73&\" ends their turn\",E73&\" hits \"&F75&\" for \"&F77&\" damage\")","v":{"$error":"#N/A"}},null,null,{"$f":"IF(E76=\"N\",\"N\",IF(F76=\"N\",\"N\",\"Y\"))","v":{"$error":"#N/A"}},{"$f":"HLOOKUP($F$73,$B$53:$H$70,18,FALSE)","v":{"$error":"#N/A"}}]
[]
[null,"Copy After Every Turn"]
[null,1,2,3,4,5,6,7]
["Starting HP",15,15,0,0,0,17,15]
["Damage",{"$f":"IFERROR(IF(B80=$E$75,IF($E$77=\"Y\",$F$77,0),0),0)","v":0},0,0,0,0,0,0]
["New HP",{"$f":"IF(B5=0,0,IFERROR(MAX(0,B81-B82),B81))","v":15},{"$f":"IF(C5=0,0,IFERROR(MAX(0,C81-C82),C81))","v":15},{"$f":"IF(D5=0,0,IFERROR(MAX(0,D81-D82),D81))","v":0},{"$f":"IF(E5=0,0,IFERROR(MAX(0,E81-E82),E81))","v":0},{"$f":"IF(F5=0,0,IFERROR(MAX(0,F81-F82),F81))","v":0},{"$f":"IF(B14=0,0,IFERROR(MAX(0,G81-G82),G81))","v":17},{"$f":"IF(C14=0,0,IFERROR(MAX(0,H81-H82),H81))","v":15}]
["Starting Distance from A",{"$f":"B9","v":25},{"$f":"C9","v":25},25,25,25]
["Mvmt (enemy)",{"$f":"IF($F$73=B80,$E$74,0)","v":{"$error":"#N/A"}},{"$f":"IF($F$73=C80,$E$74,0)","v":{"$error":"#N/A"}},{"$f":"IF($F$73=D80,$E$74,0)","v":{"$error":"#N/A"}},{"$f":"IF($F$73=E80,$E$74,0)","v":{"$error":"#N/A"}},{"$f":"IF($F$73=F80,$E$74,0)","v":{"$error":"#N/A"}}]
["Mvmt (Player A)",{"$f":"IF($F$73=6,$E$74,0)","v":{"$error":"#N/A"}},{"$f":"IF($F$73=6,$E$74,0)","v":{"$error":"#N/A"}},{"$f":"IF($F$73=6,$E$74,0)","v":{"$error":"#N/A"}},{"$f":"IF($F$73=6,$E$74,0)","v":{"$error":"#N/A"}},{"$f":"IF($F$73=6,$E$74,0)","v":{"$error":"#N/A"}}]
["New Distance from A",{"$f":"IFERROR(MAX(0.9,B84-B85-B86),0.9)","v":{"v":0.9,"d":"1"}},{"$f":"IFERROR(MAX(0.9,C84-C85-C86),0.9)","v":{"v":0.9,"d":"1"}},{"$f":"IFERROR(MAX(0.9,D84-D85-D86),0.9)","v":{"v":0.9,"d":"1"}},{"$f":"IFERROR(MAX(0.9,E84-E85-E86),0.9)","v":{"v":0.9,"d":"1"}},{"$f":"IFERROR(MAX(0.9,F84-F85-F86),0.9)","v":{"v":0.9,"d":"1"}}]
["Starting Distance from B",{"$f":"B10","v":25},{"$f":"C10","v":25},25,25,25]
["Mvmt (enemy)",{"$f":"IF($F$73=B80,$E$74,0)","v":{"$error":"#N/A"}},{"$f":"IF($F$73=C80,$E$74,0)","v":{"$error":"#N/A"}},{"$f":"IF($F$73=D80,$E$74,0)","v":{"$error":"#N/A"}},{"$f":"IF($F$73=E80,$E$74,0)","v":{"$error":"#N/A"}},{"$f":"IF($F$73=F80,$E$74,0)","v":{"$error":"#N/A"}}]
["Mvmt (Player B)",{"$f":"IF($F$73=7,$E$74,0)","v":{"$error":"#N/A"}},{"$f":"IF($F$73=7,$E$74,0)","v":{"$error":"#N/A"}},{"$f":"IF($F$73=7,$E$74,0)","v":{"$error":"#N/A"}},{"$f":"IF($F$73=7,$E$74,0)","v":{"$error":"#N/A"}},{"$f":"IF($F$73=7,$E$74,0)","v":{"$error":"#N/A"}}]
["New Distance from B",{"$f":"IFERROR(MAX(0.9,B88-B89-B90),0.9)","v":{"v":0.9,"d":"1"}},{"$f":"IFERROR(MAX(0.9,C88-C89-C90),0.9)","v":{"v":0.9,"d":"1"}},{"$f":"IFERROR(MAX(0.9,D88-D89-D90),0.9)","v":{"v":0.9,"d":"1"}},{"$f":"IFERROR(MAX(0.9,E88-E89-E90),0.9)","v":{"v":0.9,"d":"1"}},{"$f":"IFERROR(MAX(0.9,F88-F89-F90),0.9)","v":{"v":0.9,"d":"1"}}]
[]
[]
["Starting HP",{"$f":"HLOOKUP(B$3,$Y$2:$AI$21,3,FALSE)","v":15},{"$f":"IFERROR(HLOOKUP(C$3,$Y$2:$AI$21,3,FALSE),0)","v":15},{"$f":"IFERROR(HLOOKUP(D$3,$Y$2:$AI$21,3,FALSE),0)","v":0},{"$f":"IFERROR(HLOOKUP(E$3,$Y$2:$AI$21,3,FALSE),0)","v":0},{"$f":"IFERROR(HLOOKUP(F$3,$Y$2:$AI$21,3,FALSE),0)","v":0},{"$f":"Map!DU13","v":17},{"$f":"Map!DW13","v":15}]

{"sheet":"Quest Log","index":4,"n_rows":21,"n_cols":8,"rows_kept":21,"hidden":true}
[]
[null,{"$f":"Map!$DT$65","v":1},"Quest Number","Quest Name","Quest Detail","Status"]
[null,null,1,{"$f":"G3","v":"Unleashed"},{"$f":"H3","v":"The Wyvern has returned! You must head to Steamtree and report of the horrors."},{"$f":"IF(B2=1,\"In Progress\",\"Complete\")","v":"In Progress"},{"$f":"Map!EG67","v":"Unleashed"},{"$f":"Map!EJ67","v":"The Wyvern has returned! You must head to Steamtree and report of the horrors."}]
[null,null,2,{"$f":"IF($B$2>1,G4,\"\")","v":""},{"$f":"IF($B$2>1,H4,\"\")","v":""},{"$f":"IF($B$2=2,\"In Progress\",IF($B$2>1,(\"Complete\"),\"\"))","v":""},{"$f":"Map!EG68","v":"Storm's Brewing"},{"$f":"Map!EJ68","v":"You made it safely to SteamTree and rest for a while. The local Inn keep is fascinated by your story and suggests the Jarl of Darkwalk would want to hear it."}]
[null,null,3,{"$f":"IF($B$2>2,G5,\"\")","v":""},{"$f":"IF($B$2>2,H5,\"\")","v":""},{"$f":"IF($B$2=3,\"In Progress\",IF($B$2>2,(\"Complete\"),\"\"))","v":""},{"$f":"Map!EG69","v":"WyvernStone"},{"$f":"Map!EJ69","v":"The Jarl wants you to explore an ancient ruin known as the 'Greyfalls'. Rumour has it there is an ancient stone buried within that may hold secrets of why the Wyvern are returning."}]
[null,null,4,{"$f":"IF($B$2>3,G6,\"\")","v":""},{"$f":"IF($B$2>3,H6,\"\")","v":""},{"$f":"IF($B$2=4,\"In Progress\",IF($B$2>3,(\"Complete\"),\"\"))","v":""},{"$f":"Map!EG70","v":"Wyvern rising"},{"$f":"Map!EJ70","v":"You have found a Wyvernstone but cannot read the marks. Best take it back to the Jarl of Darkwalk who should be able to help."}]
[null,null,5,{"$f":"IF($B$2>4,G7,\"\")","v":""},{"$f":"IF($B$2>4,H7,\"\")","v":""},{"$f":"IF($B$2=5,\"In Progress\",IF($B$2>4,(\"Complete\"),\"\"))","v":""},{"$f":"Map!EG71","v":"Mountain High"},{"$f":"Map!EJ71","v":"A Dragon appears! With the help of the town guard, you manage to best the dragon.\nThis one was but a babe, others, those fully grown will be much harder.\n Meanwhile the mage of Darkwalk has unravelled the mystery of the Wyvernstone. You must travel to the top of the world and meet with the Whitechins."}]
[null,null,6,{"$f":"IF($B$2>5,G8,\"\")","v":""},{"$f":"IF($B$2>5,H8,\"\")","v":""},{"$f":"IF($B$2=6,\"In Progress\",IF($B$2>5,(\"Complete\"),\"\"))","v":""},{"$f":"Map!EG72","v":"Prove your worth"},{"$f":"Map!EJ72","v":"You meet the Whitechins. They do not trust this stranger that appears on their holy doorstep. You must prove your worth and find their long lost Horn - last seen in Libragrad."}]
[null,null,7,{"$f":"IF($B$2>6,G9,\"\")","v":""},{"$f":"IF($B$2>6,H9,\"\")","v":""},{"$f":"IF($B$2=7,\"In Progress\",IF($B$2>6,(\"Complete\"),\"\"))","v":""},{"$f":"Map!EG73","v":"Return the Horn"},{"$f":"Map!EJ73","v":"You find the Horn and must  now return to the Sky of the World."}]
[null,null,8,{"$f":"IF($B$2>C9,G10,\"\")","v":""},{"$f":"IF($B$2>C9,H10,\"\")","v":""},{"$f":"IF($B$2=C10,\"In Progress\",IF($B$2>C9,(\"Complete\"),\"\"))","v":""},{"$f":"Map!EG74","v":"Shadow's Knife"},{"$f":"Map!EJ74","v":"You earn the trust of the Whitechins. They urge you to seek out the Blade in the dark - one of the last surviving members of the Knives to learn more about the Wyvorn threat. Rumour has it they are hiding within the town of Steamtree."}]
[null,null,9,{"$f":"IF($B$2>C10,G11,\"\")","v":""},{"$f":"IF($B$2>C10,H11,\"\")","v":""},{"$f":"IF($B$2=C11,\"In Progress\",IF($B$2>C10,(\"Complete\"),\"\"))","v":""},{"$f":"Map!EG75","v":"Mine time"},{"$f":"Map!EJ75","v":"The Shadow's Knife, Daphne, is shocked by news of the Wyvern's return. Together you must travel to Finsgrove mine to investigate the threat further."}]
[null,null,10,"",{"$f":"IF($B$2>C11,H12,\"\")","v":""},"",{"$f":"Map!EG76","v":"Free Talk"},{"$f":"Map!EJ76","v":"The threat is real! Daphne watches with amazement as a Wyvern flies overhead. She joins your cause to eradicate the threat once and for all.\nDaphne is curious if there is any connection between Wyverns and the emergence of the Dark Elves - she urges you to investigate the Hanger."}]
[null,null,11,"","","",{"$f":"Map!EG77","v":"Trapped Mouse"},{"$f":"Map!EJ77","v":"Things are worse than we feared. Wyvern are not just coming back to life - but they are resurrecting other Wyverns! It seems somehow the Dark Elves are helping them. Daphne is out of ideas, but suggests seeking out an old friend, Eric, could help. Daphne thinks Eric may be Crackton."}]
[null,null,12,"","","",{"$f":"Map!EG78","v":"Adam's Wall"},{"$f":"Map!EJ78","v":"Eric is an expert in Wyvern lore - lucky we found him! He joins Daphne as a guide on our journey and urges we all meet together in the ancient Knives fortress of Safe Haven."}]
[null,null,13,"","","",{"$f":"Map!EG79","v":"The Voice of the World"},{"$f":"Map!EJ79","v":"Safe Haven revealed the secrets of defeating the Wyvern King. Words of Power are the key! Lets return to the Whitechins to seek their training and wisdom."}]
[null,null,14,"",{"$f":"IF($B$2>C15,H16,\"\")","v":""},"",{"$f":"Map!EG80","v":"Age's Wisdom"},{"$f":"Map!EJ80","v":"Our training has begun - but only the basics. It seems the true knowledge was written in an Ancient Scroll long forgotten. We best seek it out, deep within the shafts of  Shiftand - it's final known location."}]
[null,null,15,"","","",{"$f":"Map!EG81","v":"Adam's Bane"},{"$f":"Map!EJ81","v":"After much searching you found the Ancient Scroll - let's return to the Whitechins to finish our training."}]
[null,null,16,"","","",{"$f":"Map!EG82","v":"Season Pause"},{"$f":"Map!EJ82","v":"With the help of the Whitechins you learn the Words of Power. Just in time! As the base is assaulted by two Wyverns - using your new found power you are able to best the foul beasts. You must seek the King's aid in Coldstay."}]
[null,null,17,"","","",{"$f":"Map!EG83","v":"Collapse"},{"$f":"Map!EJ83","v":"The King heeds your words. Their will be peace amongst the land as long as the people stand united against the Wyvern Threat. Perfect timing to prepare a trap with the Earl of Darkwalk!"}]
[null,null,18,"","","",{"$f":"Map!EG84","v":"The World's Nest"},{"$f":"Map!EJ84","v":"You, and the people of Darkwalk trap Oldvinegar - a General of the Wyvern King. \nAfter tough negotiation you convince Oldvinegar to take you to his master - ready to end this one or way or another. Together you will travel to Wyvern Point."}]
[null,null,19,"","","",{"$f":"Map!EG85","v":"End of days"},{"$f":"Map!EJ85","v":"The Wyvern King is no more. You feel exhausted - perhaps it is time to return to Steamtree and rest your weary feet?"}]

{"sheet":"Quest Details","index":5,"n_rows":21,"n_cols":7,"rows_kept":21,"hidden":true}
[]
[null,null,"Quest Number","Quest Name","Quest Goal Location","Quest Text","Next Text"]
[null,null,1,"Unleashed","Steamtree","Escape Shellgon - you know of the local town of Steamtree. Perhaps you can find refuge there?","You made it safely to SteamTree and rest for a while. The local Inn keep is fascinated by your story and suggests the Jarl of Darkwalk would want to hear it."]
[null,null,2,"Storm's Brewing","Darkwalk","Journey to Darkwalk and report to the Jarl about the Wyvern Attack","The Jarl wants you to explore an ancient ruin known as the 'Greyfalls'. Rumour has it there is an ancient stone buried within that may hold secrets of why the Wyvern are returning."]
[null,null,3,"WyvernStone","Greyfalls","Delve into the ancient ruin to recovery the Wyvernstone","You have found a Wyvernstone but cannot read the marks. Best take it back to the Jarl of Darkwalk who should be able to help."]
[null,null,4,"Wyvern rising","Darkwalk","Take the Wyvernstone to Darkwalk.","A Dragon appears! With the help of the town guard, you manage to best the dragon.\nThis one was but a babe, others, those fully grown will be much harder.\n Meanwhile the mage of Darkwalk has unravelled the mystery of the Wyvernstone. You must travel to the top of the world and meet with the Whitechins."]
[null,null,5,"Mountain High","Sky of the World","Climb to the peak of the Sky of the World. ","You meet the Whitechins. They do not trust this stranger that appears on their holy doorstep. You must prove your worth and find their long lost Horn - last seen in Libragrad."]
[null,null,6,"Prove your worth","Libragrad","Travel to Libragrad and find the Horn of the Whitechins.","You find the Horn and must  now return to the Sky of the World."]
[null,null,7,"Return the Horn","Sky of the World","Travel back to the Sky of the World and return the Horn.","You earn the trust of the Whitechins. They urge you to seek out the Blade in the dark - one of the last surviving members of the Knives to learn more about the Wyvorn threat. Rumour has it they are hiding within the town of Steamtree."]
[null,null,8,"Shadow's Knife","Steamtree","Find the Blade in the dark hiding within Streamtree.","The Shadow's Knife, Daphne, is shocked by news of the Wyvern's return. Together you must travel to Finsgrove mine to investigate the threat further."]
[null,null,9,"Mine time","Finsgrove","Travel to the Finsgrove mine to investigate the Wyvern threat.","The threat is real! Daphne watches with amazement as a Wyvern flies overhead. She joins your cause to eradicate the threat once and for all.\nDaphne is curious if there is any connection between Wyverns and the emergence of the Dark Elves - she urges you to investigate the Hanger."]
[null,null,10,"Free Talk","Hanger","Journey to Hanger and investigate the Dark Elf base","Things are worse than we feared. Wyvern are not just coming back to life - but they are resurrecting other Wyverns! It seems somehow the Dark Elves are helping them. Daphne is out of ideas, but suggests seeking out an old friend, Eric, could help. Daphne thinks Eric may be Crackton."]
[null,null,11,"Trapped Mouse","Crackton","Journey to Crackton and find Eric.","Eric is an expert in Wyvern lore - lucky we found him! He joins Daphne as a guide on our journey and urges we all meet together in the ancient Knives fortress of Safe Haven."]
[null,null,12,"Adam's Wall","Safe Haven","Meet Daphne and Eric in Safe Haven","Safe Haven revealed the secrets of defeating the Wyvern King. Words of Power are the key! Lets return to the Whitechins to seek their training and wisdom."]
[null,null,13,"The Voice of the World","Sky of the World","Get training with the Whitechins.","Our training has begun - but only the basics. It seems the true knowledge was written in an Ancient Scroll long forgotten. We best seek it out, deep within the shafts of  Shiftand - it's final known location."]
[null,null,14,"Age's Wisdom","Shiftand","Search Shiftand for the Ancient Scroll.","After much searching you found the Ancient Scroll - let's return to the Whitechins to finish our training."]
[null,null,15,"Adam's Bane","Sky of the World","Finish your training.","With the help of the Whitechins you learn the Words of Power. Just in time! As the base is assaulted by two Wyverns - using your new found power you are able to best the foul beasts. You must seek the King's aid in Coldstay."]
[null,null,16,"Season Pause","Coldstay","Warn the King of the rising Wyvern Threat.","The King heeds your words. Their will be peace amongst the land as long as the people stand united against the Wyvern Threat. Perfect timing to prepare a trap with the Earl of Darkwalk!"]
[null,null,17,"Collapse","Darkwalk","Travel to Darkwalk and prepare a trap for a Wyvern General.","You, and the people of Darkwalk trap Oldvinegar - a General of the Wyvern King. \nAfter tough negotiation you convince Oldvinegar to take you to his master - ready to end this one or way or another. Together you will travel to Wyvern Point."]
[null,null,18,"The World's Nest","Wyvern Point","Travel to WyvernPoint and slay the Wyvern King.","The Wyvern King is no more. You feel exhausted - perhaps it is time to return to Steamtree and rest your weary feet?"]
[null,null,19,"End of days","Steamtree","Return to Steamtree for some well earned rest.","Well done! You have saved the region from the Wyvern Threat."]

{"sheet":"Character Stats","index":6,"n_rows":25,"n_cols":15,"rows_kept":25,"hidden":true}
[]
[null,"Name",{"$f":"Intro!G17","v":"Pear"},{"$f":"Intro!I17","v":"Dynamic"},{"$nulls":8},"Warrior","Mage","Archer"]
[null,"Image",{"$f":"Map!DU23","v":{"$error":"#VALUE!"}},{"$f":"Map!DW23","v":{"$error":"#VALUE!"}},{"$nulls":7},"Level",{"$f":"Battle!V3","v":1},{"$f":"Battle!W3","v":1},{"$f":"Battle!X3","v":1}]
[null,"Level",{"$f":"Map!DU19","v":1},{"$f":"C4","v":1},{"$nulls":7},"HP",{"$f":"Battle!V4","v":17},{"$f":"Battle!W4","v":13},{"$f":"Battle!X4","v":15}]
[null,"Class",{"$f":"Intro!G18","v":"Warrior"},{"$f":"Intro!I18","v":"Archer"},{"$nulls":7},"Strength",{"$f":"Battle!V5","v":17},{"$f":"Battle!W5","v":9},{"$f":"Battle!X5","v":12}]
[null,"Health Points",{"$f":"HLOOKUP(C$5,$L$2:$O$19,3,FALSE)","v":17},{"$f":"HLOOKUP(D$5,$L$2:$O$19,3,FALSE)","v":15},{"$nulls":7},"Dexterity",{"$f":"Battle!V6","v":13},{"$f":"Battle!W6","v":14},{"$f":"Battle!X6","v":17}]
[null,"Strength",{"$f":"HLOOKUP(C$5,$L$2:$O$19,4,FALSE)","v":17},{"$f":"HLOOKUP(D$5,$L$2:$O$19,4,FALSE)","v":12},{"$nulls":7},"Constitution",{"$f":"Battle!V7","v":15},{"$f":"Battle!W7","v":15},{"$f":"Battle!X7","v":13}]
[null,"Dexterity",{"$f":"HLOOKUP(C$5,$L$2:$O$19,5,FALSE)","v":13},{"$f":"HLOOKUP(D$5,$L$2:$O$19,5,FALSE)","v":17},{"$nulls":7},"Intelligence",{"$f":"Battle!V9","v":10},{"$f":"Battle!W9","v":16},{"$f":"Battle!X9","v":10}]
[null,"Constitution",{"$f":"HLOOKUP(C$5,$L$2:$O$19,6,FALSE)","v":15},{"$f":"HLOOKUP(D$5,$L$2:$O$19,6,FALSE)","v":13},{"$nulls":7},"Wisdom",{"$f":"Battle!V11","v":12},{"$f":"Battle!W11","v":11},{"$f":"Battle!X11","v":15}]
[null,"Intelligence",{"$f":"HLOOKUP(C$5,$L$2:$O$19,7,FALSE)","v":10},{"$f":"HLOOKUP(D$5,$L$2:$O$19,7,FALSE)","v":10},{"$nulls":7},"Charisma",{"$f":"Battle!V12","v":8},{"$f":"Battle!W12","v":13},{"$f":"Battle!X12","v":8}]
[null,"Wisdom",{"$f":"HLOOKUP(C$5,$L$2:$O$19,8,FALSE)","v":12},{"$f":"HLOOKUP(D$5,$L$2:$O$19,8,FALSE)","v":15},{"$nulls":7},"AC",{"$f":"Battle!V13","v":16},{"$f":"Battle!W13","v":12},{"$f":"Battle!X13","v":14}]
[null,"Charisma",{"$f":"HLOOKUP(C$5,$L$2:$O$19,9,FALSE)","v":8},{"$f":"HLOOKUP(D$5,$L$2:$O$19,9,FALSE)","v":8},{"$nulls":7},"Inititive Bonus",{"$f":"Battle!V14","v":1},{"$f":"Battle!W14","v":2},{"$f":"Battle!X14","v":3}]
[null,"Armour Class",{"$f":"HLOOKUP(C$5,$L$2:$O$19,10,FALSE)","v":16},{"$f":"HLOOKUP(D$5,$L$2:$O$19,10,FALSE)","v":14},{"$nulls":7},"Weapon",{"$f":"Battle!V15","v":"Long Sword"},{"$f":"Battle!W15","v":"Fireball"},{"$f":"Battle!X15","v":"Hunting Bow"}]
[null,"Inititive Bonus",{"$f":"HLOOKUP(C$5,$L$2:$O$19,11,FALSE)","v":1},{"$f":"HLOOKUP(D$5,$L$2:$O$19,11,FALSE)","v":3},{"$nulls":7},"Hit Extra",{"$f":"Battle!V16","v":5},{"$f":"Battle!W16","v":5},{"$f":"Battle!X16","v":5}]
[null,"Weapon",{"$f":"HLOOKUP(C$5,$L$2:$O$19,12,FALSE)","v":"Long Sword"},{"$f":"HLOOKUP(D$5,$L$2:$O$19,12,FALSE)","v":"Hunting Bow"},{"$nulls":7},"Basic Attack Di",{"$f":"Battle!V17","v":6},{"$f":"Battle!W17","v":10},{"$f":"Battle!X17","v":8}]
[null,"Hit Extra",{"$f":"HLOOKUP(C$5,$L$2:$O$19,13,FALSE)","v":5},{"$f":"HLOOKUP(D$5,$L$2:$O$19,13,FALSE)","v":5},{"$nulls":7},"Attack number of Di",{"$f":"Battle!V18","v":2},{"$f":"Battle!W18","v":1},{"$f":"Battle!X18","v":1}]
[null,"Basic Attack Dice",{"$f":"HLOOKUP(C$5,$L$2:$O$19,14,FALSE)","v":6},{"$f":"HLOOKUP(D$5,$L$2:$O$19,14,FALSE)","v":8},{"$nulls":7},"Extra Attack",{"$f":"Battle!V19","v":3},{"$f":"Battle!W19","v":0},{"$f":"Battle!X19","v":3}]
[null,"Number of rolls",{"$f":"HLOOKUP(C$5,$L$2:$O$19,15,FALSE)","v":2},{"$f":"HLOOKUP(D$5,$L$2:$O$19,15,FALSE)","v":1},{"$nulls":7},"Mvmt",{"$f":"Battle!V20","v":6},{"$f":"Battle!W20","v":6},{"$f":"Battle!X20","v":7}]
[null,"Extra Attack",{"$f":"HLOOKUP(C$5,$L$2:$O$19,16,FALSE)","v":3},{"$f":"HLOOKUP(D$5,$L$2:$O$19,16,FALSE)","v":3},{"$nulls":7},"Range of Attack",{"$f":"Battle!V21","v":1},{"$f":"Battle!W21","v":12},{"$f":"Battle!X21","v":24}]
[null,"Movement (metres)",{"$f":"HLOOKUP(C$5,$L$2:$O$19,17,FALSE)","v":6},{"$f":"HLOOKUP(D$5,$L$2:$O$19,17,FALSE)","v":7}]
[null,"Range of Attack (metres)",{"$f":"HLOOKUP(C$5,$L$2:$O$19,18,FALSE)","v":1},{"$f":"HLOOKUP(D$5,$L$2:$O$19,18,FALSE)","v":24}]
[]
[{"$nulls":11},"Slugger",2]
[{"$nulls":11},"Thrower",3]
[{"$nulls":11},"Ranger",4]

{"sheet":"Character Data","index":7,"n_rows":61,"n_cols":43,"rows_kept":61,"hidden":true}
[{"$nulls":23},"Enemy Types",{"$nulls":12},{"$f":"Y5","v":"Bandit Warrior"},null,{"$f":"AA5","v":"Skeleton Warrior"}]
[{"$nulls":36},{"$f":"Z5","v":"Bandit Archer"},null,{"$f":"AB5","v":"Wyvern"}]
[null,"Character",{"$nulls":21},"Character"]
[null,"Warrior"]
[null,"Level",1,2,3,4,5,6,7,8,9,10,11,12,13,14,15,16,17,18,19,20,null,"Level","Bandit Warrior","Bandit Archer","Skeleton Warrior","Wyvern","Ghost","Giant Rat","Orc Warrior","Orc Thrower","Bear","Dark Elf Warrior","Dark Elf Archer",null,{"$f":"AC5","v":"Ghost"},null,{"$f":"AD5","v":"Giant Rat"}]
[null,"HP",17,25,33,41,49,57,65,73,81,89,97,105,113,121,129,137,145,153,180,189,null,"HP",7,7,13,80,45,7,15,15,34,11,13]
[null,"Strength",17,17,17,18,18,18,18,20,20,20,20,20,20,20,20,20,20,20,20,20,null,"Strength",8,8,10,20,7,7,16,16,19,11,10,null,{"$f":"AE5","v":"Orc Warrior"},null,{"$f":"AG5","v":"Bear"}]
[null,"Dexterity",13,13,13,14,14,14,14,16,16,16,16,16,18,20,20,20,20,20,20,20,null,"Dexterity",14,14,14,10,13,15,12,12,10,12,14,null,{"$f":"AF5","v":"Orc Thrower"}]
[null,"Constitution",15,15,15,15,15,15,15,15,15,15,15,15,15,15,15,15,15,15,16,16,null,"Constitution",10,10,15,20,10,11,16,16,16,12,15]
[null,"Intelligence",10,10,10,10,10,10,10,10,10,10,10,10,10,10,10,10,10,10,10,10,null,"Intelligence",10,10,6,12,10,2,7,7,2,10,6,null,{"$f":"AH5","v":"Dark Elf Warrior"}]
[null,"Wisdom",12,12,12,12,12,12,12,12,12,12,12,12,12,12,12,12,12,12,13,13,null,"Wisdom",8,8,8,12,12,10,11,11,4,10,8,null,{"$f":"AI5","v":"Dark Elf Archer"}]
[null,"Charisma",8,8,8,8,8,8,8,8,8,8,8,8,8,8,8,8,8,8,8,8,null,"Charisma",8,8,5,12,17,4,10,10,13,10,5,null,null,"Prob.",1,2,3,4,5]
[null,"AC",16,16,16,16,16,16,16,16,16,16,16,16,16,16,16,16,16,16,16,16,null,"AC",15,15,13,20,11,12,13,13,7,12,13,null,null,"Small Group of Bandits",{"$f":"Y5","v":"Bandit Warrior"},{"$f":"Z5","v":"Bandit Archer"}]
[null,"Inititive Bonus",1,1,1,2,2,2,4,5,5,5,5,5,7,8,8,8,8,8,8,8,null,"Inititive Bonus",0,0,0,0,0,0,0,0,0,0,0,null,null,"Group of Bandits",{"$f":"Y5","v":"Bandit Warrior"},{"$f":"Y5","v":"Bandit Warrior"},{"$f":"Z5","v":"Bandit Archer"}]
[null,"Weapon","Long Sword","Long Sword","Long Sword","Long Sword","Long Sword","Long Sword","Long Sword","Long Sword","Long Sword","Long Sword","Long Sword","Long Sword","Long Sword","Long Sword","Long Sword","Long Sword","Long Sword","Long Sword","Long Sword","Long Sword",null,"Weapon","Sharp Spear","Crude Bow","Ancient Sword","Dragon Claw","Withering Touch","Bite","Greataxe","Javelin","Claws","Crude Sword","Crude Bow",null,null,"Large Groub of Bandits",{"$f":"Y5","v":"Bandit Warrior"},{"$f":"Y5","v":"Bandit Warrior"},{"$f":"Z5","v":"Bandit Archer"},{"$f":"Y5","v":"Bandit Warrior"},{"$f":"Z5","v":"Bandit Archer"}]
[null,"Hit Extra",5,5,5,6,7,7,7,8,9,9,9,9,10,10,10,10,11,11,11,11,null,"Hit Extra",4,4,4,12,5,4,5,5,6,3,3,null,null,"Ghost",{"$f":"AC5","v":"Ghost"},{"$f":"AC5","v":"Ghost"},{"$f":"AC5","v":"Ghost"}]
[null,"Basic Attack Di",6,6,6,6,6,6,6,6,6,6,6,6,6,6,6,6,6,6,6,6,null,"Basic Attack Di",6,6,6,6,5,4,12,6,6,6,8,null,null,"Small Group of Orcs",{"$f":"AE5","v":"Orc Warrior"},{"$f":"AF5","v":"Orc Thrower"},{"$f":"AE5","v":"Orc Warrior"},{"$f":"AE5","v":"Orc Warrior"},{"$f":"AF5","v":"Orc Thrower"}]
[null,"Attack number of Di",2,2,2,2,4,4,4,4,4,4,6,6,6,6,6,6,6,6,6,8,null,"Attack number of Di",1,1,1,3,4,2,1,1,3,1,1,null,null,"Group of Orcs",{"$f":"AE5","v":"Orc Warrior"},{"$f":"AF5","v":"Orc Thrower"},{"$f":"AE5","v":"Orc Warrior"}]
[null,"Extra Attack",3,3,3,4,4,4,4,5,5,5,5,5,5,5,5,5,5,5,5,5,null,"Extra Attack",2,2,2,10,3,2,3,3,5,1,1,null,null,"Small group of Dark Elves",{"$f":"AH5","v":"Dark Elf Warrior"},{"$f":"AI5","v":"Dark Elf Archer"}]
[null,"Mvmt",6,6,6,6,6,6,6,6,9,9,9,9,9,9,12,12,12,12,12,12,null,"Mvmt",6,6,6,12,3,6,6,6,10,6,6,null,null,"Group of Dark Elves",{"$f":"AH5","v":"Dark Elf Warrior"},{"$f":"AI5","v":"Dark Elf Archer"},{"$f":"AH5","v":"Dark Elf Warrior"},{"$f":"AI5","v":"Dark Elf Archer"}]
[null,"Range of Attack",1,1,1,1,1,1,1,1,1,1,1,1,1,1,1,1,1,1,1,1,null,"Range of Attack",1,12,1,1,1,1,1,6,1,1,15,null,null,"Giant Rat",{"$f":"AD5","v":"Giant Rat"},{"$f":"AD5","v":"Giant Rat"},{"$f":"AD5","v":"Giant Rat"},{"$f":"AD5","v":"Giant Rat"}]
[{"$nulls":37},"Bear",{"$f":"AG5","v":"Bear"}]
[null,"Character",{"$nulls":35},"Large Group of Skeletons",{"$f":"AA5","v":"Skeleton Warrior"},{"$f":"AA5","v":"Skeleton Warrior"},{"$f":"AA5","v":"Skeleton Warrior"},{"$f":"AA5","v":"Skeleton Warrior"},{"$f":"AA5","v":"Skeleton Warrior"}]
[null,"Mage",{"$nulls":21},"Types of Battle","Range",{"$nulls":12},"Wyvern","Wyvern"]
[null,"Level",1,2,3,4,5,6,7,8,9,10,11,12,13,14,15,16,17,18,19,20,null,"Ambush",7]
[null,"HP",13,20,27,34,41,48,55,62,69,76,83,102,110,118,126,134,142,150,177,186,null,"Meet",13]
[null,"Strength",9,9,9,9,9,9,9,9,9,9,9,9,9,9,9,9,9,9,9,9,null,"Planned",25]
[null,"Dexterity",14,14,14,14,14,14,14,14,14,14,14,14,14,14,14,14,14,14,15,15]
[null,"Constitution",15,15,15,16,16,16,16,17,17,17,17,18,18,18,18,19,19,19,20,20]
[null,"Intelligence",16,16,16,17,17,17,17,18,18,18,18,19,19,19,19,20,20,20,20,20]
[null,"Wisdom",11,11,11,11,11,11,11,11,11,11,11,11,11,11,11,11,11,11,11,11]
[null,"Charisma",13,13,13,13,13,13,13,13,13,13,13,13,13,13,13,13,13,13,13,13]
[null,"AC",12,12,12,12,12,12,12,12,12,12,12,12,12,12,12,12,12,12,12,12]
[null,"Inititive Bonus",2,2,2,2,2,2,2,2,2,2,2,2,2,2,2,2,2,2,2,2]
[null,"Weapon","Fireball","Fireball","Fireball","Fireball","Fireball","Fireball","Fireball","Fireball","Fireball","Fireball","Fireball","Fireball","Fireball","Fireball","Fireball","Fireball","Fireball","Fireball","Fireball","Fireball"]
[null,"Hit Extra",5,5,5,5,6,6,6,7,8,8,8,8,9,9,9,10,11,11,11,11]
[null,"Basic Attack Di",10,10,10,10,10,10,10,10,10,10,10,10,10,10,10,10,10,10,10,10]
[null,"Attack number of Di",1,1,1,1,2,2,2,2,2,3,3,3,3,3,3,3,4,4,4,4]
[null,"Extra Attack",0,0,0,0,0,0,0,0,0,0,0,0,0,0,0,0,0,0,0,0]
[null,"Mvmt",6,6,6,6,6,6,6,6,6,6,6,6,6,6,6,6,6,6,6,6]
[null,"Range of Attack",12,12,12,12,12,12,12,12,12,12,12,12,12,12,12,12,12,12,12,12]
[]
[null,"Character"]
[null,"Archer"]
[null,"Level",1,2,3,4,5,6,7,8,9,10,11,12,13,14,15,16,17,18,19,20]
[null,"HP",15,22,29,36,43,50,57,72,80,88,96,104,112,120,128,152,161,170,179,188]
[null,"Strength",12,12,12,12,12,12,12,12,12,12,12,12,12,12,12,12,12,12,12,12]
[null,"Dexterity",17,17,17,18,18,18,18,19,19,19,19,19,19,19,19,19,19,19,20,20]
[null,"Constitution",13,13,13,13,13,13,13,14,14,14,14,15,15,15,15,16,16,16,17,17]
[null,"Intelligence",10,10,10,10,10,10,10,10,10,10,10,10,10,10,10,10,10,10,10,10]
[null,"Wisdom",15,15,15,16,16,16,16,16,16,16,16,17,17,17,17,17,17,17,17,17]
[null,"Charisma",8,8,8,8,8,8,8,8,8,8,8,8,8,8,8,9,9,9,9,9]
[null,"AC",14,14,14,15,15,15,15,15,15,15,15,15,15,15,15,15,15,15,16,16]
[null,"Inititive Bonus",3,3,3,4,4,4,4,4,4,4,4,4,4,4,4,4,4,4,5,5]
[null,"Weapon","Hunting Bow","Hunting Bow","Hunting Bow","Hunting Bow","Hunting Bow","Hunting Bow","Hunting Bow","Hunting Bow","Hunting Bow","Hunting Bow","Hunting Bow","Hunting Bow","Hunting Bow","Hunting Bow","Hunting Bow","Hunting Bow","Hunting Bow","Hunting Bow","Hunting Bow","Hunting Bow"]
[null,"Hit Extra",5,7,7,8,8,9,9,9,10,10,10,10,11,11,11,11,12,12,13,13]
[null,"Basic Attack Di",8,8,8,8,8,8,8,8,8,8,8,8,8,8,8,8,8,8,8,8]
[null,"Attack number of Di",1,1,1,1,2,2,2,2,2,2,2,2,2,2,2,2,2,2,2,2]
[null,"Extra Attack",3,3,3,4,4,4,4,4,4,4,4,4,4,4,4,4,4,4,5,5]
[null,"Mvmt",7,7,7,7,7,7,7,7,7,7,7,7,7,7,7,7,7,7,7,7]
[null,"Range of Attack",24,24,24,24,24,24,24,24,24,24,24,24,24,24,24,24,24,24,24,24]

{"sheet":"BattleProbabilities","index":8,"n_rows":13,"n_cols":42,"rows_kept":13,"hidden":true}
["Prob.",1,2,3,4,5,6,7,8,9,10,11,12,13,14,15,16,17,18,19,20,null,1,2,3,4,5,6,7,8,9,10,11,12,13,14,15,16,17,18,19,20]
[{"$f":"'Character Data'!AL13","v":"Small Group of Bandits"},1,1,1,1,1,1,1,1,1,1,1,1,1,1,1,1,1,1,1,1,null,0.04,0.09,0,0,0.19,0.15,0.15,0,{"$f":"1/12","v":0.08333333333333333},0.08333333333333333,0.08333333333333333,0.08333333333333333,0.08333333333333333,0.08333333333333333,0.08333333333333333,0.08333333333333333,0.08333333333333333,0.08333333333333333,0.08333333333333333,0.08333333333333333]
[{"$f":"'Character Data'!AL14","v":"Group of Bandits"},0,1,1,1,1,1,1,1,1,1,1,1,1,1,1,1,1,1,1,1,null,0.04,0.09,0.2,0.1,0.19,0.15,0.15,0,{"$f":"1/12","v":0.08333333333333333},0.08333333333333333,0.08333333333333333,0.08333333333333333,0.08333333333333333,0.08333333333333333,0.08333333333333333,0.08333333333333333,0.08333333333333333,0.08333333333333333,0.08333333333333333,0.08333333333333333]
[{"$f":"'Character Data'!AL15","v":"Large Groub of Bandits"},0,0,0,0,1,1,1,1,1,1,1,1,1,1,1,1,1,1,1,1,null,0.04,0.09,0.37,0.46,0.19,0.15,0.15,0,0.08333333333333333,0.08333333333333333,0.08333333333333333,0.08333333333333333,0.08333333333333333,0.08333333333333333,0.08333333333333333,0.08333333333333333,0.08333333333333333,0.08333333333333333,0.08333333333333333,0.08333333333333333]
[{"$f":"'Character Data'!AL16","v":"Ghost"},0,0,0,0,0,1,1,1,1,1,1,1,1,1,1,1,1,1,1,1,null,0.01,0.01,0.01,0.03,0.05,0.07,0.07,0.12,0.08333333333333333,0.08333333333333333,0.08333333333333333,0.08333333333333333,0.08333333333333333,0.08333333333333333,0.08333333333333333,0.08333333333333333,0.08333333333333333,0.08333333333333333,0.08333333333333333,0.08333333333333333]
[{"$f":"'Character Data'!AL17","v":"Small Group of Orcs"},1,1,1,1,1,1,1,1,1,1,1,1,1,1,1,1,1,1,1,1,null,0.025,0.025,0.025,0.05,0.05,0.07,0.07,0.12,0.08333333333333333,0.08333333333333333,0.08333333333333333,0.08333333333333333,0.08333333333333333,0.08333333333333333,0.08333333333333333,0.08333333333333333,0.08333333333333333,0.08333333333333333,0.08333333333333333,0.08333333333333333]
[{"$f":"'Character Data'!AL18","v":"Group of Orcs"},0,0,0,1,1,1,1,1,1,1,1,1,1,1,1,1,1,1,1,1,null,0.025,0.025,0.025,0.05,0.05,0.07,0.07,0.12,0.08333333333333333,0.08333333333333333,0.08333333333333333,0.08333333333333333,0.08333333333333333,0.08333333333333333,0.08333333333333333,0.08333333333333333,0.08333333333333333,0.08333333333333333,0.08333333333333333,0.08333333333333333]
[{"$f":"'Character Data'!AL19","v":"Small group of Dark Elves"},0,0,0,0,1,1,1,1,1,1,1,1,1,1,1,1,1,1,1,1,null,0.25,0.2,0.1,0.05,0.05,0.07,0.07,0.12,0.08333333333333333,0.08333333333333333,0.08333333333333333,0.08333333333333333,0.08333333333333333,0.08333333333333333,0.08333333333333333,0.08333333333333333,0.08333333333333333,0.08333333333333333,0.08333333333333333,0.08333333333333333]
[{"$f":"'Character Data'!AL20","v":"Group of Dark Elves"},0,0,0,0,1,1,1,1,1,1,1,1,1,1,1,1,1,1,1,1,null,0.25,0.2,0.1,0.05,0.05,0.07,0.07,0.12,0.08333333333333333,0.08333333333333333,0.08333333333333333,0.08333333333333333,0.08333333333333333,0.08333333333333333,0.08333333333333333,0.08333333333333333,0.08333333333333333,0.08333333333333333,0.08333333333333333,0.08333333333333333]
[{"$f":"'Character Data'!AL21","v":"Giant Rat"},1,1,1,1,1,1,1,1,1,1,1,1,1,1,1,1,1,1,1,1,null,0.25,0.2,0.1,0.1,0.05,0.07,0.07,0.1,0.08333333333333333,0.08333333333333333,0.08333333333333333,0.08333333333333333,0.08333333333333333,0.08333333333333333,0.08333333333333333,0.08333333333333333,0.08333333333333333,0.08333333333333333,0.08333333333333333,0.08333333333333333]
[{"$f":"'Character Data'!AL22","v":"Bear"},0,1,1,1,1,1,1,1,1,1,1,1,1,1,1,1,1,1,1,1,null,0.05,0.05,0.05,0.05,0.05,0.07,0.07,0.1,0.08333333333333333,0.08333333333333333,0.08333333333333333,0.08333333333333333,0.08333333333333333,0.08333333333333333,0.08333333333333333,0.08333333333333333,0.08333333333333333,0.08333333333333333,0.08333333333333333,0.08333333333333333]
[{"$f":"'Character Data'!AL23","v":"Large Group of Skeletons"},0,0,1,1,1,1,1,1,1,1,1,1,1,1,1,1,1,1,1,1,null,0.01,0.01,0.01,0.03,0.04,0.04,0.04,0.1,0.08333333333333333,0.08333333333333333,0.08333333333333333,0.08333333333333333,0.08333333333333333,0.08333333333333333,0.08333333333333333,0.08333333333333333,0.08333333333333333,0.08333333333333333,0.08333333333333333,0.08333333333333333]
[{"$f":"'Character Data'!AL24","v":"Wyvern"},0,0,0,1,1,1,1,1,1,1,1,1,1,1,1,1,1,1,1,1,null,0.00999999999999994,0.009999999999999981,0.009999999999999953,0.02999999999999972,0.03999999999999965,0.01999999999999963,0.01999999999999963,0.10000000000000009,0.08333333333333333,0.08333333333333333,0.08333333333333333,0.08333333333333333,0.08333333333333333,0.08333333333333333,0.08333333333333333,0.08333333333333333,0.08333333333333333,0.08333333333333333,0.08333333333333333,0.08333333333333333]

{"sheet":"Level Exp Tracker","index":9,"n_rows":5,"n_cols":26,"rows_kept":5,"hidden":true}
[{"$nulls":3},"Sum of Exp"]
[{"$nulls":3},{"$f":"SUM(A:A)","v":0}]
[{"$nulls":5},1,2,3,4,5,6,7,8,9,10,11,12,13,14,15,16,17,18,19,20]
[{"$nulls":5},3,3,5,5,7,7,9,9,11,11,13,13,15,15,17,17,19,19,25,99999999,{"$f":"SUM(F4:Y4)","v":100000222}]
[{"$nulls":5},{"$f":"IF($D$2>F4-0.1,1,0)","v":0},{"$f":"IF($D$2>G4-0.1,1,0)","v":0},0,0,0,0,0,0,{"$f":"IF($D$2>N4-0.1,1,0)","v":0},{"$f":"IF($D$2>O4-0.1,1,0)","v":0},0,0,0,0,0,0,0,0,0,0]